Workbook

Sheet lists (hidden)
B1: Embedded Distributor | C1: =COUNTA(B1:B17) -> 4 | I1: A Standby Service Charge will be applied for a month where standby power is not provided. The applicable rate is the approved Distribution Volumetric Rate of the applicable service class and is applied to gross metered demand or contracted amount, whichever is greater. A monthly administration charge of $200, for simple metering arrangements, or $500, for complex metering arrangements, will also be applied. | L1: Loss Factors | N1: Units | O1: Units1 | P1: Units2 | Z1: Account History | AA1: Account set up charge/change of occupancy charge (plus credit agency costs if applicable) | AB1: Total Loss Factor – Embedded Distributor – Hydro One Networks Inc. | AL1: Alectra Utilities Corporation-Brampton Rate Zone | AO1: DISTRIBUTED GENERATION [DGEN] | AP1: kW | AT1: Sub-Total: Delivery (Distribution and Retail Transmission)
A2: RESIDENTIAL R1 | B2: General Service 3,000 to 4,999 kW | I2: Distribution Volumetric Rate | L2: Total Loss Factor – Primary Metered Customer | N2: $ | O2: $/kWh | P2: $ | Z2: Account set up charge/change of occupancy charge | AA2: Administrative Billing Charge | AB2: Total Loss Factor – Primary Metered Customer | AL2: Alectra Utilities Corporation-Enersource Rate Zone | AO2: EMBEDDED DISTRIBUTOR | AP2: kW | AT2: Wholesale Market Service Rate | AW2: =AU2*AV2 -> 0 | AX2: =AU2 -> 0 | AY2: 0 | AZ2: =AX2*AY2 -> 0 | BB2: =AZ2-AW2 -> 0 | BC2: =BB2/AW2 -> 
A3: RESIDENTIAL R2 | B3: General Service 1,000 to 4,999 kW | I3: Distribution Volumetric Rate - $/kW of contracted amount | L3: Total Loss Factor – Primary Metered Customer < 5,000 kW | N3: $/kWh | O3: $/kW | P3: % | W3: MSC | Z3: Account set up charge/change of occupancy charge (plus credit agency costs if applicable – Residential) | AA3: Bell Canada Pole Rentals | AB3: Total Loss Factor – Primary Metered Customer < 5,000 kW | AL3: Alectra Utilities Corporation-Horizon Utilities Rate Zone | AO3: EMBEDDED DISTRIBUTOR | AP3: kW | AT3: Rural or Remote Electricity Rate Protection Charge (RRRP) | AW3: =AU3*AV3 -> 0 | AX3: 0 | AY3: 0 | AZ3: =AX3*AY3 -> 0 | BB3: =AZ3-AW3 -> 0 | BC3: =BB3/AW3 -> 
A4: SEASONAL CUSTOMERS | B4: General Service Equal To Or Greater Than 1,500 kW - Interval Metered | I4: Distribution Wheeling Service Rate | L4: Total Loss Factor – Primary Metered Customer > 5,000 kW | N4: $/kW | O4: $/kVA | W4: SM_Rate_Adder | Z4: Account set up charge/change of occupancy charge (plus credit agency costs if applicable) | AA4: Clearance Pole Attachment charge $/pole/year | AB4: Total Loss Factor – Primary Metered Customer > 5,000 kW | AL4: Alectra Utilities Corporation-PowerStream Rate Zone | AO4: FARMS - SINGLE PHASE ENERGY-BILLED [F1] | AP4: kWh | AT4: Standard Supply Service – Administration Charge (if applicable) | AW4: =AU4*AV4 -> 0 | AX4: 0 | AY4: 0 | AZ4: =AX4*AY4 -> 0 | BB4: =AZ4-AW4 -> 0 | BC4: =BB4/AW4 -> 
A5: STREET LIGHTING | I5: Electricity Rate | L5: Total Loss Factor – Secondary Metered Customer | N5: $/kVA | W5: MSC_Rate_Rider_ | Z5: Arrears certificate | AA5: Collection of account charge – no disconnection | AB5: Total Loss Factor – Secondary Metered Customer | AL5: Alectra Utilities Corporation-Guelph Rate Zone | AO5: FARMS - THREE PHASE ENERGY-BILLED [F3] | AP5: kWh | AT5: Sub-Total: Regulatory | AW5: =SUM(AW2:AW4) -> 0 | AZ5: =SUM(AZ2:BA4) -> 0 | BB5: =AZ5-AW5 -> 0 | BC5: =BB5/AW5 -> 
A6: RESIDENTIAL | I6: Electricity Rate - All Additional kWh | L6: Total Loss Factor – Secondary Metered Customer < 5,000 kW | W6: VC | Z6: Arrears certificate (credit reference) | AA6: Collection of account charge – no disconnection – after regular hours | AB6: Total Loss Factor – Secondary Metered Customer < 5,000 kW | AL6: Algoma Power Inc. | AO6: GENERAL SERVICE - COMMERCIAL | AP6: kW | AT6: Debt Retirement Charge (DRC) | AW6: =AU6*AV6 -> 0 | AX6: =AU6 -> 0 | AY6: =AV6 -> 0 | AZ6: =AX6*AY6 -> 0 | BB6: =AZ6-AW6 -> 0 | BC6: =BB6/AW6 -> 
A7: GENERAL SERVICE LESS THAN 50 kW | I7: Electricity Rate - First 250 kWh | AL7: Atikokan Hydro Inc. | AO7: GENERAL SERVICE - INSTITUTIONAL | AP7: kW
A8: GENERAL SERVICE 50 TO 4,999 KW | I8: Electricity Rate -All Additional kWh | L8: Total Loss Factor – Secondary Metered Customer > 5,000 kW | W8: VC_Rate_Rider_ | Z8: Charge to certify cheque | AA8: Collection of account charge – no disconnection - during regular business hours | AB8: Total Loss Factor – Secondary Metered Customer > 5,000 kW | AL8: Bluewater Power Distribution Corporation | AO8: GENERAL SERVICE 1,000 TO 2,999 KW | AP8: kW | AT8: Total Bill on RPP (before taxes) | BB8: =AZ8-AW8 -> 0
A9: GENERAL SERVICE 50 TO 999 kW | I9: Electricity Rate First 1,000 kWh | L9: Distribution Loss Factor - Secondary Metered Customer < 5,000 kW | W9: VC_GA_Rate_Rider_kW_ | Z9: Collection of Account Charge – No Disconnection | AA9: Collection of account charge – no disconnection – during regular hours | AL9: Burlington Hydro Inc. | AO9: GENERAL SERVICE 1,000 TO 4,999 KW | AP9: kW | AT9: HST | AW9: =AV9*AW8 -> 0 | AY9: =AV9 -> 0 | AZ9: =AY9*AZ8 -> 0 | BB9: =AZ9-AW9 -> 0 | BC9: =BB9/AW9 -> 
A10: GENERAL SERVICE 1,000 TO 4,999 kW | I10: Electricity Rate First 25,000 kWh | L10: Distribution Loss Factor - Secondary Metered Customer > 5,000 kW | W10: VC_LV_Rate | Z10: Credit Card Convenience Charge | AA10: Collection/Disconnection/Load Limiter/Reconnection – if in Community | AL10: Canadian Niagara Power Inc. | AO10: GENERAL SERVICE 1,000 TO 4,999 KW - INTERVAL METERS | AP10: kW | AT10: Total Bill (including HST) | AW10: =AW9+AW8 -> 0 | AZ10: =AZ9+AZ8 -> 0 | BB10: =AZ10-AW10 -> 0 | BC10: =BB10/AW10 -> 
A11: LARGE USE | I11: Electricity Rate First 6,000 kWh | L11: Distribution Loss Factor - Primary Metered Customer < 5,000 kW | W11: RTSR_Network | Z11: Credit check (plus credit agency costs) | AA11: Credit Card Convenience Charge | AL11: Centre Wellington Hydro Ltd. | AO11: GENERAL SERVICE 1,000 TO 4,999 KW (CO-GENERATION) | AP11: kW | AT11: Ontario Clean Energy Benefit (OCEB) | AW11: =-0.1*AW10 -> 0 | AY11: =AV11 -> 0 | AZ11: =-0.1*AZ10 -> 0 | BB11: =AZ11-AW11 -> 0 | BC11: =BB11/AW11 -> 
A12: UNMETERED SCATTERED LOAD | I12: Electricity Rate Next 1,500 kWh | L12: Distribution Loss Factor - Primary Metered Customer > 5,000 kW | W12: RTSR_Connection | Z12: Credit reference Letter | AA12: Disconnect/Reconnect at meter – after regular hours | AL12: Chapleau Public Utilities Corporation | AO12: GENERAL SERVICE 1,500 TO 4,999 KW | AP12: kW | AT12: Total Bill on RPP (including OCEB) | AW12: =AW10+AW11 -> 0 | AZ12: =AZ10+AZ11 -> 0 | BB12: =AZ12-AW12 -> 0 | BC12: =BB12/AW12 -> 
A13: SENTINEL LIGHTING | I13: General Service 1,500 to 4,999 kW customer | AL13: Cooperative Hydro Embrun Inc. | AO13: GENERAL SERVICE 2,500 TO 4,999 KW | AP13: kW
A14: EMBEDDED DISTRIBUTOR | I14: General Service 50 to 1,499 kW customer | L14: Total Loss Factor - Embedded Distributor | W14: RTSR_Network_Interval | Z14: Credit reference/credit check (plus credit agency costs – General Service) | AA14: Disconnect/Reconnect at meter – during regular hours | AL14: E.L.K. Energy Inc. | AO14: GENERAL SERVICE 3,000 TO 4,999 KW | AP14: kW | AT14: Total Bill on TOU (before taxes) | BB14: =AZ14-AW14 -> 0
A15: STANDBY POWER | I15: General Service Large Use customer | L15: Total Loss Factor – Embedded Distributor – Hydro One Networks Inc. | W15: RTSR_Connection_Interval | Z15: Credit Reference/credit check (plus credit agency costs) | AA15: Disconnect/Reconnect at pole – after regular hours | AL15: Elexicon Energy Inc.-Whitby Rate Zone | AO15: GENERAL SERVICE 3,000 TO 4,999 KW - INTERMEDIATE USE | AP15: kW | AT15: HST | AW15: =AV15*AW14 -> 0 | AY15: =AV15 -> 0 | AZ15: =AY15*AZ14 -> 0 | BB15: =AZ15-AW15 -> 0 | BC15: =BB15/AW15 -> 
A16: GENERAL SERVICE 50 TO 2,999 KW | I16: Green Energy Act Initiatives Funding Adder - effective until the date of the next cost of service-based rate order | W16: RTSR_Network_Interval_GR1000kW | Z16: Dispute Test – Commercial self contained -- MC | AA16: Disconnect/Reconnect at pole – during regular hours | AL16: Elexicon Energy Inc.-Veridian Rate Zone | AO16: GENERAL SERVICE 3,000 TO 4,999 KW - INTERVAL METERED | AP16: kW | AT16: Total Bill (including HST) | AW16: =AW15+AW14 -> 0 | AZ16: =AZ15+AZ14 -> 0 | BB16: =AZ16-AW16 -> 0 | BC16: =BB16/AW16 -> 
A17: GENERAL SERVICE 3,000 TO 4,999 KW | I17: Green Energy Act Plan Funding Adder | W17: RTSR_Connection_Interval_GR1000kW | Z17: Dispute Test – Commercial TT -- MC | AA17: Disconnect/Reconnect Charge – At Meter – After Hours | AL17: Enova Power Corp.-Kitchener-Wilmot Hydro Rate Zone | AO17: GENERAL SERVICE 3,000 TO 4,999 KW - TIME OF USE | AP17: kW | AT17: Ontario Clean Energy Benefit (OCEB) | AW17: =-0.1*AW16 -> 0 | AY17: =AV17 -> 0 | AZ17: =-0.1*AZ16 -> 0 | BB17: =AZ17-AW17 -> 0 | BC17: =BB17/AW17 -> 
A18: GENERAL SERVICE 3,000 TO 4,999 KW - INTERMEDIATE USE | I18: Green Energy Act Plan Funding Adder - effective April 1, 2013 until March 31, 2014 | W18: RTSR_Line_Connection | Z18: Dispute Test – Residential | AA18: Disconnect/Reconnect Charge – At Meter – During Regular Hours | AL18: Enova Power Corp.-Waterloo North Rate Zone | AO18: GENERAL SERVICE 50 TO 1,000 KW | AP18: kW | AT18: Total Bill on TOU (including OCEB) | AW18: =AW16+AW17 -> 0 | AZ18: =AZ16+AZ17 -> 0 | BB18: =AZ18-AW18 -> 0 | BC18: =BB18/AW18 -> 
A19: LARGE USE - REGULAR | I19: Green Energy Act Plan Funding Adder - effective April 1, 2014 until March 31, 2015 | W19: RTSR_Transformer_Connection | Z19: Duplicate Invoices for previous billing | AA19: Disconnect/Reconnect Charge – At Pole – After Hours | AL19: Entegrus Powerlines Inc.-For Entegrus-Main Rate Zone | AO19: GENERAL SERVICE 50 TO 1,000 KW - INTERVAL METERS | AP19: kW
A20: LARGE USE - 3TS | I20: ICM Rate Rider (2014) - in effect until the effective date of the next cost of service rates | W20: WMSR | Z20: Easement Letter | AA20: Disconnect/Reconnect Charge – At Pole – During Regular Hours | AL20: Entegrus Powerlines Inc.-For Former St. Thomas Energy Rate Zone | AO20: GENERAL SERVICE 50 TO 1,000 KW - NON INTERVAL METERS | AP20: kW
A21: LARGE USE - FORD ANNEX | I21: Low Voltage Service Charge | W21: RRRP | Z21: Income Tax Letter | AA21: Disconnect/Reconnect Charges for non payment of account - At Meter After Hours | AL21: ENWIN Utilities Ltd. | AO21: GENERAL SERVICE 50 TO 1,499 KW | AP21: kW
A22: GENERAL SERVICE 50 TO 499 kW | I22: Low Voltage Service Rate | W22: SPC | Z22: Interval Meter Interrogation | AA22: Disconnect/Reconnect charges for non payment of account – at meter after regular hours | AL22: EPCOR Electricity Distribution Ontario Inc. | AO22: GENERAL SERVICE 50 TO 1,499 KW - INTERVAL METERED | AP22: kW
A23: GENERAL SERVICE 500 TO 4,999 kW | I23: Low Voltage Volumetric Rate | W23: DRC | Z23: Interval meter request change | AA23: Disconnect/Reconnect Charges for non payment of account - At Meter During Regular Hours | AL23: ERTH Power Corporation - ERTH Power Main Rate Zone | AO23: GENERAL SERVICE 50 TO 2,499 KW | AP23: kW
A24: GENERAL SERVICE 50 TO 1,499 kW | I24: LRAM Rate Rider - Effective Until April 30, 2015 | W24: SSS | Z24: Legal letter | AA24: Disconnect/Reconnect charges for non payment of account – at meter during regular hours | AL24: ERTH POWER CORPORATION – GODERICH RATE ZONE | AO24: GENERAL SERVICE 50 TO 2,999 KW | AP24: kW
A25: INTERMEDIATE USER | I25: Minimum Distribution Charge - per KW of maximum billing demand in the previous 11 months | W25: SFLF | Z25: Legal letter charge | AA25: Disconnect/Reconnect charges for non payment of account – at pole after regular hours | AL25: Essex Powerlines Corporation | AO25: GENERAL SERVICE 50 TO 2,999 KW - INTERVAL METERED | AP25: kW
A26: LARGE USE WITH DEDICATED ASSETS | B26: January | I26: Monthly Distribution Wheeling Service Rate - Dedicated LV Line | W26: DLF_Secondary_LT_5000kW | Z26: Meter dispute charge plus Measurement Canada fees (if meter found correct) | AA26: Disconnect/Reconnect charges for non payment of account – at pole during regular hours | AL26: Festival Hydro Inc. | AO26: GENERAL SERVICE 50 TO 2,999 KW - TIME OF USE | AP26: kW
A27: GENERAL SERVICE 50 TO 699 KW | B27: February | I27: Monthly Distribution Wheeling Service Rate - Hydro One Networks | W27: DLF_Secondary_GT_5000kW | Z27: Notification charge | AA27: Disconnect/Reconnection for >300 volts - after regular hours | AL27: Fort Frances Power Corporation | AO27: GENERAL SERVICE 50 TO 4,999 KW | AP27: kW
A28: GENERAL SERVICE 700 TO 4,999 KW | B28: March | I28: Monthly Distribution Wheeling Service Rate - Shared LV Line | W28: DLF_Primary_LT_5000kW | Z28: Pulling Post Dated Cheques | AA28: Disconnect/Reconnection for >300 volts - during regular hours | AL28: GrandBridge Energy Inc.-Brantford Power Rate Zone | AO28: GENERAL SERVICE 50 TO 4,999 KW - INTERVAL METERED | AP28: kW
A29: DISTRIBUTED GENERATION [DGEN] | B29: April | I29: Monthly Distribution Wheeling Service Rate - Waterloo North Hydro | W29: DLF_Primary_GT_5000kW | Z29: Request for other billing information | AA29: Disposal of Concrete Poles | AL29: GrandBridge Energy Inc.-Energy+ Rate Zone | AO29: GENERAL SERVICE 50 TO 4,999 KW - TIME OF USE | AP29: kW
A30: ENERGY FROM WASTE | B30: May | I30: Rate Rider for Application of Tax Change - effective until April 30, 2015 | W30: TLF_Secondary_LT_5000kW | Z30: Returned cheque (plus bank charges) | AA30: Dispute Test – Commercial TT -- MC | AL30: Greater Sudbury Hydro Inc. | AO30: GENERAL SERVICE 50 TO 4,999 KW (COGENERATION) | AP30: kW
A31: UR RESIDENTIAL | B31: June | I31: Rate Rider for Application of Tax Change - effective until December 31, 2014 | W31: TLF_Secondary_GT_5000kW | Z31: Returned cheque charge (plus bank charges) | AA31: Install/Remove load control device – after regular hours | AL31: Grimsby Power Incorporated | AO31: GENERAL SERVICE 50 TO 4,999 KW (FORMERLY TIME OF USE) | AP31: kW
A32: R1 RESIDENTIAL | B32: July | I32: Rate Rider for Application of Tax Change (2014) - effective until April 30, 2015 | W32: TLF_Primary_LT_5000kW | Z32: Special Billing Service (aggregation) | AA32: Install/Remove load control device – during regular hours | AL32: Halton Hills Hydro Inc. | AO32: GENERAL SERVICE 50 TO 499 KW | AP32: kW
A33: R2 RESIDENTIAL | B33: August | I33: Rate Rider for Application of Tax Change (per connection) - effective until April 30, 2015 | W33: TLF_Primary_GT_5000kW | Z33: Special Billing Service (sub-metering charge per meter) | AA33: Interval Meter Interrogation | AL33: Hearst Power Distribution Co. Ltd. | AO33: GENERAL SERVICE 50 TO 699 KW | AP33: kW
A34: SEASONAL | B34: September | I34: Rate Rider for CGAAP Accounting Changes (2013) - effective until April 30, 2017 | W34: TLF_EmbeddedDistributor | Z34: Special meter reads | AA34: Interval Meter Load Management Tool Charge $/month | AL34: Hydro 2000 Inc. | AO34: GENERAL SERVICE 50 TO 999 KW | AP34: kW
A35: URBAN GENERAL SERVICE ENERGY BILLED | B35: October | I35: Rate Rider for Deferral/Variance Account (2012) - effective unitl April 30, 2016 | Z35: Statement of Account | AA35: Interval meter request change | AL35: Hydro Hawkesbury Inc. | AO35: GENERAL SERVICE 50 TO 999 KW - INTERVAL METERED | AP35: kW
A36: GENERAL SERVICE ENERGY BILLED | B36: November | I36: Rate Rider for Deferral/Variance Account Disposition – effective until April 30, 2015 | Z36: Unprocessed Payment Charge (plus bank charges) | AA36: Late Payment – per annum | AL36: Hydro One Networks Inc. | AO36: GENERAL SERVICE 500 TO 4,999 KW | AP36: kW
A37: URBAN GENERAL SERVICE DEMAND BILLED | B37: December | I37: Rate Rider for Deferral/Variance Account Disposition (2012) - effective until April 30, 2016 | AA37: Late Payment – per month | AL37: Hydro One Networks Inc.-Former Orillia Power Distribution Corporation Service Area | AO37: GENERAL SERVICE 700 TO 4,999 KW | AP37: kW
A38: GENERAL SERVICE DEMAND BILLED | I38: Rate Rider for Deferral/Variance Account Disposition (2013) - effective until April 30, 2014 | AA38: Layout fees | AL38: Hydro One Networks Inc.-Former Peterborough Distribution Inc. Service Area | AO38: GENERAL SERVICE DEMAND BILLED (50 KW AND ABOVE) [GSD] | AP38: kW
A39: DISTRIBUTED GENERATION | I39: Rate Rider for Deferral/Variance Account Disposition (2014) - effective until April 28, 2016 | AA39: Meter dispute charge plus Measurement Canada fees (if meter found correct) | AL39: Hydro One Networks Inc.-Former Haldimand County Hydro Inc. Service Area | AO39: GENERAL SERVICE ENERGY BILLED (LESS THAN 50 KW) [GSE-METERED] | AP39: kWh
A40: SUB TRANSMISSION | I40: Rate Rider for Deferral/Variance Account Disposition (2014) - effective until April 30, 2015 | AA40: Meter Interrogation Charge | AL40: Hydro One Networks Inc.-Former Norfolk Power Distribution Inc. Service Area | AO40: GENERAL SERVICE ENERGY BILLED (LESS THAN TO 50 KW) [GSE-UNMETERED] | AP40: kWh
A41: GENERAL SERVICE GREATER THAN ,000 kW | I41: Rate Rider for Deferral/Variance Account Disposition (2014) - effective until December 31, 2014 | AA41: Missed Service Appointment | AL41: Hydro One Networks Inc.-Former Woodstock Hydro Services Inc. Service Area | AO41: GENERAL SERVICE EQUAL TO OR GREATER THAN 1,500 KW | AP41: kW
A42: GENERAL SERVICE 1,500 TO 4,999 kW | I42: Rate Rider for Deferral/Variance Account Disposition (2014) - effective until December 31, 2015 | AA42: Norfolk Pole Rentals – Billed | AL42: Hydro One Remote Communites Inc. | AO42: GENERAL SERVICE EQUAL TO OR GREATER THAN 1,500 KW - INTERVAL METERED | AP42: kW
A43: HCI, RESOP, OTHER ENERGY RESOURCE | I43: Rate Rider for Deferral/Variance Account Dispositon (2012) - effective until April 30, 2016 | AA43: Optional Interval/TOU Meter charge $/month | AL43: Hydro Ottawa Limited | AO43: GENERAL SERVICE GREATER THAN 1,000 KW | AP43: kW
A44: GENERAL SERVICE 1,000 TO 4,999 KW (CO-GENERATION) | I44: Rate Rider for Disposition of Accounting Changes Under CGAAP Account 1576 - effective until April 30, 2016 | AA44: Overtime Locate | AL44: InnPower Corporation | AO44: GENERAL SERVICE GREATER THAN 50 kW - WMP | AP44: kW
A45: GENERAL SERVICE 1,000 KW AND GREATER | I45: Rate Rider for Disposition of Deferral/Variance Accounts (2010) - effective until December 31, 2014 | AA45: Owner Requested Disconnection/Reconnection – after regular hours | AL45: Kingston Hydro Corporation | AO45: GENERAL SERVICE INTERMEDIATE 1,000 TO 4,999 KW | AP45: kW
A46: GENERAL SERVICE GREATER THAN 1,000kW | I46: Rate Rider for Disposition of Deferral/Variance Accounts (2011) - effective until April 30, 2015 | AA46: Owner Requested Disconnection/Reconnection – during regular hours | AL46: Lakefront Utilities Inc. | AO46: GENERAL SERVICE INTERMEDIATE RATE CLASS 1,000 TO 4,999 KW (FORMERLY GENERAL SERVICE > 50 KW CUSTOMERS) | AP46: kW
A47: GENERAL SERVICE 500 TO 1,499 KW | I47: Rate Rider for Disposition of Deferral/Variance Accounts (2011) - effective until April 30, 2016 | AA47: Returned cheque (plus bank charges) | AL47: Lakeland Power Distribution Ltd. | AO47: GENERAL SERVICE INTERMEDIATE RATE CLASS 1,000 TO 4,999 KW (FORMERLY LARGE USE CUSTOMERS) | AP47: kW
A48: GENERAL SERVICE EQUAL TO OR GREATER THAN 1,500 KW | I48: Rate Rider for Disposition of Deferral/Variance Accounts (2012) - effective until April 30, 2014 | AA48: Rural system expansion / line connection fee | AL48: London Hydro Inc. | AO48: GENERAL SERVICE LESS THAN 50 KW | AP48: kWh
A49: COMPETITIVE SECTOR MULTI-UNIT RESIDENTIAL | I49: Rate Rider for Disposition of Deferral/Variance Accounts (2012) - effective until April 30, 2015 | AA49: Same Day Open Trench | AL49: Milton Hydro Distribution Inc. | AO49: GENERAL SERVICE LESS THAN 50 KW - SINGLE PHASE ENERGY-BILLED [G1] | AP49: kWh
A50: SEASONAL RESIDENTIAL | I50: Rate Rider for Disposition of Deferral/Variance Accounts (2012) - effective until April 30, 2016 | AA50: Scheduled Day Open Trench | AL50: Newmarket-Tay Power Distribution Ltd.-For Former Midland Power Utility Rate Zone | AO50: GENERAL SERVICE LESS THAN 50 KW - THREE PHASE ENERGY-BILLED [G3] | AP50: kWh
I51: Rate Rider for Disposition of Deferral/Variance Accounts (2012) - effective until August 31, 2014 | AA51: Service call – after regular hours | AL51: Newmarket-Tay Power Distribution Ltd.-For Newmarket-Tay Power Main Rate Zone | AO51: GENERAL SERVICE LESS THAN 50 KW - TRANSMISSION CLASS ENERGY-BILLED [T] | AP51: kWh
I52: Rate Rider for Disposition of Deferral/Variance Accounts (2012) - effective until December 31, 2015 | AA52: Service call – customer owned equipment | AL52: Niagara Peninsula Energy Inc. | AO52: GENERAL SERVICE LESS THAN 50 KW - URBAN ENERGY-BILLED [UG] | AP52: kWh
I53: Rate Rider for Disposition of Deferral/Variance Accounts (2012) - effective until December 31, 2016 Applicable only in the former service area of Clinton Power | AA53: Service Call – Customer-owned Equipment – After Regular Hours | AL53: Niagara-on-the-Lake Hydro Inc. | AO53: GENERAL SERVICE SINGLE PHASE - G1 | AP53: kW
I54: Rate Rider for Disposition of Deferral/Variance Accounts (2012) – effective until December 31, 2016 Applicable only in the former service area of Clinton Power | AA54: Service Call – Customer-owned Equipment – During Regular Hours | AL54: North Bay Hydro Distribution Limited | AO54: GENERAL SERVICE THREE PHASE - G3 | AP54: kW
I55: Rate Rider for Disposition of Deferral/Variance Accounts (2012) - effective until January 31, 2014 | AA55: Service Charge for onsite interrogation of interval meter due to customer phone line failure - required weekly until line repaired $ 6 | AL55: Northern Ontario Wires Inc. | AO55: INTERMEDIATE USERS | AP55: kW
I56: Rate Rider for Disposition of Deferral/Variance Accounts (2012) - effective until June 30, 2014 | AA56: Service Layout - Commercial | AL56: Oakville Hydro Electricity Distribution Inc. | AO56: INTERMEDIATE WITH SELF GENERATION | AP56: kW
I57: Rate Rider for Disposition of Deferral/Variance Accounts (2013) - Applicable only to Wholesale Market Participants - effective until April 30, 2015 | AA57: Service Layout - ResidentiaI | AL57: Orangeville Hydro Limited | AO57: LARGE USE | AP57: kW
I58: Rate Rider for Disposition of Deferral/Variance Accounts (2013) - effective until April 30, 2014 | AA58: Special Billing Service (sub-metering charge per meter) | AL58: Oshawa PUC Networks Inc. | AO58: LARGE USE - 3TS | AP58: kW
I59: Rate Rider for Disposition of Deferral/Variance Accounts (2013) - effective until April 30, 2015 | AA59: Special meter reads | AL59: Ottawa River Power Corporation | AO59: LARGE USE - FORD ANNEX | AP59: kW
I60: Rate Rider for Disposition of Deferral/Variance Accounts (2013) - effective until April 30, 2015 - not applicable to Wholesale Market Participants | AA60: Specific Charge for Access to the Power Poles - $/pole/year | AL60: PUC Distribution Inc. | AO60: LARGE USE - REGULAR | AP60: kW
I61: Rate Rider for Disposition of Deferral/Variance Accounts (2013) - effective until April 30, 2017 | AA61: Specific Charge for Bell Canada Access to the Power Poles – per pole/year | AL61: Renfrew Hydro Inc. | AO61: LARGE USE > 5000 KW | AP61: kW
I62: Rate Rider for Disposition of Deferral/Variance Accounts (2013) - effective until August 31, 2014 | AA62: Switching for company maintenance – Charge based on Time and Materials | AL62: Rideau St. Lawrence Distribution Inc. | AO62: microFIT | AP62: $
I63: Rate Rider for Disposition of Deferral/Variance Accounts (2013) - effective until December 31, 2014 | AA63: Temporary Service – Install & remove – overhead – no transformer | AL63: Sioux Lookout Hydro Inc. | AO63: RESIDENTIAL | AP63: kWh
I64: Rate Rider for Disposition of Deferral/Variance Accounts (2013) - effective until May 31, 2014 | AA64: Temporary Service – Install & remove – overhead – with transformer | AL64: Synergy North Corporation-Kenora Rate Zone | AO64: RESIDENTIAL - HENSALL | AP64: kWh
I65: Rate Rider for Disposition of Deferral/Variance Accounts (2014) - effective until December 31, 2015 | AA65: Temporary Service – Install & remove – underground – no transformer | AL65: Synergy North Corporation-Thunder Bay Rate Zone | AO65: RESIDENTIAL - HIGH DENSITY [R1] | AP65: kWh
I66: Rate Rider for Disposition of Deferred PILs Variance Account 1562 - effective until March 31, 2016 | AA66: Temporary service install & remove – overhead – no transformer | AL66: Tillsonburg Hydro Inc. | AO66: RESIDENTIAL - LOW DENSITY [R2] | AP66: kWh
I67: Rate Rider for Disposition of Deferred PILs Variance Account 1562 (2012) - effective until April 30, 2015 | AA67: Temporary Service Install & Remove – Overhead – With Transformer | AL67: Toronto Hydro-Electric System Limited | AO67: RESIDENTIAL - MEDIUM DENSITY [R1] | AP67: kWh
I68: Rate Rider for Disposition of Deferred PILs Variance Account 1562 (2012) - effective until April 30, 2016 | AA68: Temporary Service Install & Remove – Underground – No Transformer | AL68: Wasaga Distribution Inc. | AO68: RESIDENTIAL - NORMAL DENSITY [R2] | AP68: kWh
I69: Rate Rider for Disposition of Deferred PILs Variance Account 1562 (2nd Installment - 2012) - effective until April 30, 2016 | AA69: Temporary service installation and removal – overhead – no transformer | AL69: Welland Hydro-Electric System Corp. | AO69: RESIDENTIAL - TIME OF USE | AP69: kWh
I70: Rate Rider for Disposition of Deferred PILs Variance Account 1562 (per connection) (2012) - effective until April 30, 2015 | AA70: Temporary service installation and removal – overhead – with transformer | AL70: Wellington North Power Inc. | AO70: RESIDENTIAL - URBAN [UR] | AP70: kWh
I71: Rate Rider for Disposition of Deferred PILs Variance Account 1562 (per connection) (2012) - effective until April 30, 2016 | AA71: Temporary service installation and removal – underground – no transformer | AL71: Westario Power Inc. | AO71: RESIDENTIAL REGULAR | AP71: kWh
I72: Rate Rider for Disposition of Global Adjustment Sub-Account (2011) - effective until April 30, 2015 Applicable only for Non-RPP Customers | AO72: RESIDENTIAL SUBURBAN | AP72: kWh
I73: Rate Rider for Disposition of Global Adjustment Sub-Account (2011) - effective until April 30, 2016 Applicable only for Non-RPP Customers | AO73: RESIDENTIAL SUBURBAN SEASONAL | AP73: kWh
I74: Rate Rider for Disposition of Global Adjustment Sub-Account (2012) - effective until April 30, 2014 Applicable only for Non-RPP Customers | AO74: RESIDENTIAL SUBURBAN YEAR ROUND | AP74: kWh
I75: Rate Rider for Disposition of Global Adjustment Sub-Account (2012) - effective until April 30, 2015 Applicable only for Non-RPP Customers | AO75: RESIDENTIAL URBAN | AP75: kWh
I76: Rate Rider for Disposition of Global Adjustment Sub-Account (2012) - effective until April 30, 2015 Applicatble only for Non-RPP Customers | AO76: RESIDENTIAL URBAN YEAR-ROUND | AP76: kWh
I77: Rate Rider for Disposition of Global Adjustment Sub-Account (2012) - effective until April 30, 2016 Applicable only for Non-RPP Customers | AO77: SEASONAL RESIDENTIAL | AP77: kWh
I78: Rate Rider for Disposition of Global Adjustment Sub-Account (2012) - effective until January 31, 2014. Applicable only for Non-RPP Customers | AO78: SEASONAL RESIDENTIAL - HIGH DENSITY [R3] | AP78: kWh
I79: Rate Rider for Disposition of Global Adjustment Sub-Account (2012) - effective until June 30, 2014 Applicable only for Non-RPP Customers | AO79: SEASONAL RESIDENTIAL - NORMAL DENSITY [R4] | AP79: kWh
I80: Rate Rider for Disposition of Global Adjustment Sub-Account (2012) Applicable only for Non-RPP Customers - effective until August 31, 2014 | AO80: SENTINEL LIGHTING | AP80: kW
I81: Rate Rider for Disposition of Global Adjustment Sub-Account (2012) Applicable only to Non-RPP Customers - effective until August 31, 2014 | AO81: SMALL COMMERCIAL AND USL - PER CONNECTION | AP81: kWh
I82: Rate Rider for Disposition of Global Adjustment Sub-Account (2013) - effective until April 30, 2014 Applicable only for Non-RPP Customers | AO82: SMALL COMMERCIAL AND USL - PER METER | AP82: kWh
I83: Rate Rider for Disposition of Global Adjustment Sub-Account (2013) - effective until April 30, 2015 Applicable only for Non-RPP Customers | AO83: STANDARD A GENERAL SERVICE AIR ACCESS | AP83: kWh
I84: Rate Rider for Disposition of Global Adjustment Sub-Account (2013) - effective until April 30, 2015 Applicable only for Non-RPP Customers and excluding Wholesale Market Participants | AO84: STANDARD A GENERAL SERVICE ROAD/RAIL | AP84: kWh
I85: Rate Rider for Disposition of Global Adjustment Sub-Account (2013) - effective until April 30, 2017 Applicable only for Non-RPP Customers | AO85: STANDARD A GRID CONNECTED | AP85: kWh
I86: Rate Rider For Disposition of Global Adjustment Sub-Account (2013) - effective until August 31, 2014 Applicable only for Non-RPP Customers | AO86: STANDARD A RESIDENTIAL AIR ACCESS | AP86: kWh
I87: Rate Rider for Disposition of Global Adjustment Sub-Account (2013) - effective until December 31, 2014 Applicable only for Non-RPP Customers | AO87: STANDARD A RESIDENTIAL ROAD/RAIL | AP87: kWh
I88: Rate Rider for Disposition of Global Adjustment Sub-Account (2013) - effective until May 31, 2014 Applicable only for Non-RPP Customers | AO88: STANDBY - GENERAL SERVICE 1,000 - 5,000 KW | AP88: kW
I89: Rate Rider for Disposition of Global Adjustment Sub-Account (2014) - effective until December 31, 2014. Applicable only for Non-RPP - Class B Customers | AO89: STANDBY - GENERAL SERVICE 50 - 1,000 KW | AP89: kW
I90: Rate Rider for Disposition of Global Adjustment Sub-Account (2014) - effective until December 31, 2014. Applicable only for Non-RPP Customers | AO90: STANDBY - LARGE USE | AP90: kW
I91: Rate Rider for Disposition of Global Adjustment Sub-Account (2014) - effective until December 31, 2014. Applicable only for Non-RPP Customers - Class A Customers | AO91: STANDBY DISTRIBUTION SERVICE | AP91: kW
I92: Rate Rider for Disposition of Global Adjustment Sub-Account (2014) - effective until December 31, 2014. Applicable only for Non-RPP Customers - Interval Metered | AO92: STANDBY POWER | AP92: kW
I93: Rate Rider for Disposition of Global Adjustment Sub-Account (2014) - effective until December 31, 2014. Applicable only for Non-RPP Customers - Non Interval Metered | AO93: STANDBY POWER - APPROVED ON AN INTERIM BASIS | AP93: kW
I94: Rate Rider for Disposition of Global Adjustment Sub-Account (2014) - effective until December 31, 2015. Applicable only for Non-RPP Customers. | AO94: STANDBY POWER GENERAL SERVICE 1,500 TO 4,999 KW | AP94: kW
I95: Rate Rider for Disposition of Post Retirement Actuarial Gain - effective until March 31, 2025 | AO95: STANDBY POWER GENERAL SERVICE 50 TO 1,499 KW | AP95: kW
I96: Rate Rider for Disposition of Residual Hisotrical Smart Meter Costs - effective until April 30, 2015 | AO96: STANDBY POWER GENERAL SERVICE LARGE USE | AP96: kW
I97: Rate Rider for Disposition of Residual Hisotrical Smart Meter Costs - effective until April 30, 2017 | AO97: STREET LIGHTING | AP97: kW
I98: Rate Rider for Disposition of Residual Historical Smart Meter Costs - effective until April 30, 2014 | AO98: SUB TRANSMISSION [ST] | AP98: kW
I99: Rate Rider for Disposition of Residual Historical Smart Meter Costs - effective until April 30, 2016 | AO99: UNMETERED SCATTERED LOAD | AP99: kWh
I100: Rate Rider for Disposition of Residual Historical Smart Meter Costs - effective until August 31, 2014 | AO100: URBAN GENERAL SERVICE DEMAND BILLED (50 KW AND ABOVE) [UGD] | AP100: kW
I101: Rate Rider for Disposition of Residual Historical Smart Meter Costs - effective until August 31, 2015 | AO101: URBAN GENERAL SERVICE ENERGY BILLED (LESS THAN 50 KW) [UGE] | AP101: kWh
I102: Rate Rider for Disposition of Residual Historical Smart Meter Costs - effective until December 31, 2014 | AO102: WESTPORT SEWAGE TREATMENT PLANT | AP102: kW
I103: Rate Rider for Disposition of Residual Historical Smart Meter Costs – effective until December 31, 2014 | AO103: YEAR-ROUND RESIDENTIAL - R2 | AP103: kWh
I104: Rate Rider for Disposition of Residual Historical Smart Meter Costs - effective until December 31, 2015
I105: Rate Rider for Disposition of Residual Historical Smart Meter Costs - effective until December 31, 2016
I106: Rate Rider for Disposition of Residual Historical Smart Meter Costs - effective until October 31, 2014
I107: Rate Rider for Disposition of Residual Historical Smart Meter Costs - effective until September 30, 2014
I108: Rate Rider for Disposition of Residual Historical Smart Meter Costs - Non-Interval Metered - effective until April 30, 2014
I109: Rate Rider for Disposition of Residual Historical Smart Meter Costs 2 - in effect until the effective date of the next cost of service-based rate order
I110: Rate Rider for Disposition of Residual Historical Smart Meter Costs 3 - in effect until the effective date of the next cost of service-based rate order
I111: Rate Rider for Disposition of Residual Incremental Historical Smart Meter Costs - effective until August 31, 2015
I112: Rate Rider for Disposition of Stranded Meter costs - effective until April 30, 2015
I113: Rate Rider for Disposition of Stranded Meter Costs - effective until April 30, 2016
I114: Rate Rider for Disposition of Stranded Meter Costs - effective until April 30, 2017
I115: Rate Rider for Global Adjustment Sub Account Disposition - effective until April 30, 2016 Applicable only for Non RPP Customers
I116: Rate Rider for Global Adjustment Sub-Account Disposition (2014) - effective until April 28, 2016 Applicable only for Non-RPP Customers
I117: Rate Rider for Global Adjustment Sub-Account Disposition (2014) - effective until April 30, 2015 Applicable only for Non-RPP Customers
I118: Rate Rider for Global Adjustment Sub-Account Disposition (2014) - effective until December 30, 2015 Applicable only for Non-RPP Customers
I119: Rate Rider for Global Adjustment Sub-Account Disposition (2014) - effective until December 31, 2014 Applicable only for Non-RPP Customers
I120: Rate Rider for Global Adjustment Sub-Account Disposition (2014) - effective until December 31, 2015 Applicable only for Non-RPP Customers
I121: Rate Rider for Global Adjustment Sub-Account Disposition Applicable only for Non-RPP Customers - effective until April 30, 2015
I122: Rate Rider for Incremental Capital - Distribution Volumetric - effective until April 30, 2016
I123: Rate Rider for Incremental Capital - Service Charge - effective until April 30, 2016
I124: Rate Rider for Incremental Capital (2012) - effective until April 30, 2015
I125: Rate Rider for Lost Revenue Adjustment Mechanism Variance Account (LRAMVA) Recovery (2012 CDM Activities) - effective until April 30, 2015
I126: Rate Rider for Recover of Residual Historical Smart meter Costs - effective until June 30, 2014
I127: Rate Rider for Recovery of CGAAP/CWIP Differential - in effect until December 31, 2016
I128: Rate Rider for Recovery of Foregone Revenue - effective until April 30, 2015
I129: Rate Rider for Recovery of Forgone Revenue - effective until April 30, 2015
I130: Rate Rider for Recovery of Forgone Revenue - effective until December 31, 2014
I131: Rate Rider for Recovery of Green Energy Act related costs - effective until December 31, 2014
I132: Rate Rider for Recovery of Incremental Capital (2013) - in effect until the effective date of the next cost of service-based rate order
I133: Rate Rider for Recovery of Incremental Capital (2013) - in effect until the effective date of the next cost of service-based rate order
I134: Rate Rider for Recovery of Incremental Capital (2013) (per connection) - in effect until the effective date of the next cost of service-based rate order
I135: Rate Rider for Recovery of Incremental Capital (2013) (per connection)- in effect until the effective date of the next cost of service-based rate order
I136: Rate Rider for Recovery of Incremental Capital Costs
I137: Rate Rider for Recovery of Incremental Capital Costs - effective until April 30, 2015
I138: Rate Rider for Recovery of Incremental Capital Module Costs (2014) - in effect until the effective date of the next cost of service-based rate order
I139: Rate Rider for Recovery of Incremental Capital Module Costs (2014) - in effect until the effective date of the next cost of service-based rate order
I140: Rate Rider for Recovery of Lost Revenue Adjustment Mechanism ( LRAM)/Shared Savings Mechanism (SSM) (2012) - effective until August 31, 2014
I141: Rate Rider for Recovery of Lost Revenue Adjustment Mechanism (2013) - effective until December 31, 2014
I142: Rate Rider for Recovery of Lost Revenue Adjustment Mechanism (LRAM) - effective until April 30, 2016
I143: Rate Rider for Recovery of Lost Revenue Adjustment Mechanism (LRAM) (pre-2011 CDM Activities) - effective until April 30, 2015
I144: Rate Rider for Recovery of Lost Revenue Adjustment Mechanism (LRAM) (pre-2011 CDM Activities) (2013) - effective until April 30, 2015
I145: Rate Rider for Recovery of Lost Revenue Adjustment Mechanism (LRAM)/Shared Savings
I146: Rate Rider for Recovery of Lost Revenue Adjustment Mechanism (LRAM)/Shared Savings Mechanism (SSM) - effective until December 31, 2018 and applicable in the service area excluding the former service areas of Clinton Power and West Perth Power
I147: Rate Rider for Recovery of Lost Revenue Adjustment Mechanism (LRAM)/Shared Savings Mechanism (SSM) - effective until December 31, 2014 and applicable in the service area excluding the former service areas of Clinton Power and West Perth Power
I148: Rate Rider for Recovery of Lost Revenue Adjustment Mechanism (LRAM)/Shared Savings Mechanism (SSM) - effective until December 31, 2014 and applicable only in the former service area of Clinton Power
I149: Rate Rider for Recovery of Lost Revenue Adjustment Mechanism (LRAM)/Shared Savings Mechanism (SSM) - effective until December 31, 2014 and applicable only in the former service area of West Perth Power
I150: Rate Rider for Recovery of Lost Revenue Adjustment Mechanism (LRAM)/Shared Savings Mechanism (SSM) - effective until December 31, 2014 and applicable in the service area excluding the former service area of Clinton Power
I151: Rate Rider for Recovery of Lost Revenue Adjustment Mechanism (LRAM)/Shared Savings Mechanism (SSM) - effective until March 31, 2016
I152: Rate Rider for Recovery of Lost Revenue Adjustment Mechanism (LRAM)/Shared Savings Mechanism (SSM) (2012) - effective until August 31, 2014
I153: Rate Rider for Recovery of Lost Revenue Adjustment Mechanism (LRAM)/Shared Savings Mechanism (SSM) Recovery - effective until April 30, 2015
I154: Rate Rider for Recovery of Lost Revenue Adjustment Mechanism Variance Account (LRAMVA) (2014) - effective until April 30, 2015
I155: Rate Rider for Recovery of Residual Historical Smart Meter Costs - effective July 1, 2012 - April 30, 2016
I156: Rate Rider for Recovery of Smart Meter Incremental Revenue Requirement - effective until the date of the next cost of service-based rate order
I157: Rate Rider for Recovery of Smart Meter Incremental Revenue Requirement - effective until the effective date of the next cost of service-based rate order, or October 31, 2017, whichever occurs earlier
I158: Rate Rider for Recovery of Smart Meter Incremental Revenue Requirement - in effect until the effective date of the next cost of service-based rate order
I159: Rate Rider for Recovery of Smart Meter Incremental Revenue Requirement - Non-Interval Metered - in effect until the effective date of the next cost of service-based rate order
I160: Rate Rider for Recovery of Smart Meter Incremental Revenue Requirements - in effect until the effective date of the next cost of service application
I161: Rate Rider for Recovery of Smart Meter Stranded Assets - effective until April 30, 2016
I162: Rate Rider for Recovery of Storm Damage Costs - effective until August 31, 2017
I163: Rate Rider for Recovery of Stranded Assets - effective until April 30, 2016
I164: Rate Rider for Recovery of Stranded Meter Assets - effective July 1, 2012 - April 30, 2016
I165: Rate Rider for Recovery of Stranded Meter Assets – effective until April 30, 2015
I166: Rate Rider for Recovery of Stranded Meter Assets - effective until April 30, 2016
I167: Rate Rider for Recovery of Stranded Meter Assets - effective until April 30, 2017
I168: Rate Rider for Recovery of Stranded Meter Assets - effective until August 31, 2015
I169: Rate Rider for Recovery of Stranded Meter Assets - effective until August 31, 2017
I170: Rate Rider for Recovery of Stranded Meter Assets - effective until December 31, 2014
I171: Rate Rider for Recovery of Stranded Meter Assets - effective until December 31, 2015
I172: Rate Rider for Recovery of Stranded Meter Assets - effective until June 30, 2016
I173: Rate Rider for Recovery of Stranded Meter Assets - effective until March 31, 2016
I174: Rate Rider for Recovery of Stranded Meter Assets - effective until May 31, 2014
I175: Rate Rider for Reversal of Deferral/Variance Account Disposition (2011) - effective until April 30, 2015
I176: Rate Rider for Smart Meter Disposition - effective until April 30, 2016
I177: Rate Rider for Smart Meter Incremental Revenue Requirement - in effect until the effective date of the next cost of service-based rate order
I178: Rate Rider for Smart Metering Entity Charge - effective until October 31, 2018
I179: Rate Rider for Stranded Meter Cost Recovery - effective until April 30, 2017
I180: Rate Rider for Tax Change
I181: Rate Rider for Tax Change - effective until April 30, 2015
I182: Rate Rider for Tax Change (2014) - effective until April 30, 2015
I183: Retail Transmission Rate - Line and Transformation Connection Service Rate
I184: Retail Transmission Rate - Line and Transformation Connection Service Rate - (less than 1,000 kW)
I185: Retail Transmission Rate - Line and Transformation Connection Service Rate - Interval Metered
I186: Retail Transmission Rate - Line and Transformation Connection Service Rate - Interval Metered (1,000 to 4,999 kW)
I187: Retail Transmission Rate - Line and Transformation Connection Service Rate - Interval Metered (less than 1,000 kW)
I188: Retail Transmission Rate - Line and Transformation Connection Service Rate - Interval Metered < 1,000 kW
I189: Retail Transmission Rate - Line and Transformation Connection Service Rate FOR ALL SERVICE AREAS EXCEPT HENSALL
I190: Retail Transmission Rate - Line and Transformation Connection Service Rate - Interval Metered > 1,000 kW
I191: Retail Transmission Rate - Line Connection Service Rate
I192: Retail Transmission Rate - Network Service Rate
I193: Retail Transmission Rate - Network Service Rate - (less than 1,000 kW)
I194: Retail Transmission Rate - Network Service Rate - Interval Metered
I195: Retail Transmission Rate - Network Service Rate - Interval Metered (1,000 to 4,999 kW)
I196: Retail Transmission Rate - Network Service Rate - Interval Metered (less than 1,000 kW)
I197: Retail Transmission Rate - Network Service Rate - Interval Metered > 1,000 kW
I198: Retail Transmission Rate - Transformation Connection Service Rate
I199: Rider for Global Adjustment Sub-Account Disposition (2012) - effective until April 30, 2016 Applicable only for Non-RPP Customers
I200: Rural or Remote Electricity Rate Protection Charge (RRRP)
... 14 more rows

Sheet tempcopy (hidden)
A1: RESIDENTIAL | C1: ='[1]6. Growth Factor - DEN_CALC'!$C$17:$E$25 -> 105999 | D1: 968772164 | E1: 0 | G1: ='3. Growth Factor - NUM_CALC1'!#REF! ->  | H1: ='3. Growth Factor - NUM_CALC1'!#REF! ->  | I1: ='3. Growth Factor - NUM_CALC1'!#REF! -> 
A2: SEASONAL RESIDENTIAL | C2: 1590 | D2: 9089444 | E2: 0 | G2: ='3. Growth Factor - NUM_CALC1'!#REF! ->  | H2: ='3. Growth Factor - NUM_CALC1'!#REF! ->  | I2: ='3. Growth Factor - NUM_CALC1'!#REF! -> 
A3: GENERAL SERVICE LESS THAN 50 kW | C3: 8781 | D3: 299645543 | E3: 0 | G3: ='3. Growth Factor - NUM_CALC1'!#REF! ->  | H3: ='3. Growth Factor - NUM_CALC1'!#REF! ->  | I3: ='3. Growth Factor - NUM_CALC1'!#REF! -> 
A4: GENERAL SERVICE 50 TO 2,999 KW | C4: 1087 | D4: 0 | E4: 2566405 | G4: ='3. Growth Factor - NUM_CALC1'!#REF! ->  | H4: ='3. Growth Factor - NUM_CALC1'!#REF! ->  | I4: ='3. Growth Factor - NUM_CALC1'!#REF! -> 
A5: GENERAL SERVICE 3,000 TO 4,999 KW | C5: 5 | D5: 0 | E5: 259661 | G5: ='3. Growth Factor - NUM_CALC1'!#REF! ->  | H5: ='3. Growth Factor - NUM_CALC1'!#REF! ->  | I5: ='3. Growth Factor - NUM_CALC1'!#REF! -> 
A6: LARGE USE | C6: 2 | D6: 0 | E6: 193776 | G6: ='3. Growth Factor - NUM_CALC1'!#REF! ->  | H6: ='3. Growth Factor - NUM_CALC1'!#REF! ->  | I6: ='3. Growth Factor - NUM_CALC1'!#REF! -> 
A7: UNMETERED SCATTERED LOAD | C7: 929 | D7: 4496870 | E7: 0 | G7: ='3. Growth Factor - NUM_CALC1'!#REF! ->  | H7: ='3. Growth Factor - NUM_CALC1'!#REF! ->  | I7: ='3. Growth Factor - NUM_CALC1'!#REF! -> 
A8: SENTINEL LIGHTING | C8: 475 | D8: 0 | E8: 1580 | G8: ='3. Growth Factor - NUM_CALC1'!#REF! ->  | H8: ='3. Growth Factor - NUM_CALC1'!#REF! ->  | I8: ='3. Growth Factor - NUM_CALC1'!#REF! -> 
A9: STREET LIGHTING | C9: 29943 | D9: 0 | E9: 59945 | G9: ='3. Growth Factor - NUM_CALC1'!#REF! ->  | H9: ='3. Growth Factor - NUM_CALC1'!#REF! ->  | I9: ='3. Growth Factor - NUM_CALC1'!#REF! -> 
A10: Total | C10: =SUM(C1:C9) -> 148811 | D10: =SUM(D1:D9) -> 1282004021 | E10: =SUM(E1:E9) -> 3081367

Sheet 1. Information Sheet
U1: a | AA1: =IF(OR(F16="", F16="(if applicable)"), F14, F14 & " - " & F16) -> Elexicon Energy Inc.-Veridian Rate Zone
A12: Note: Depending on the selections made below, certain worksheets in this workbook will be hidden. | M12: Version | N12: 1
E14: Utility Name | F14: Elexicon Energy Inc.-Veridian Rate Zone
E18: Assigned EB Number
E20: Name of Contact and Title
E22: Phone Number
E24: Email Address
A26: Is this Capital Module being filed in a CoS or Price-Cap IR Application? | F26: Price-Cap IR | L26: Rate Year | M26: 2026
A28: ="Indicate the Price-Cap IR Year (1, 2, 3, 4, etc) in which " &F14 & " is applying:" -> Indicate the Price-Cap IR Year (1, 2, 3, 4, etc) in which Elexicon Energy Inc.-Veridian Rate Zone is applying: | F28: 12 | J28: ="Next OEB Scheduled Rebasing Year" -> Next OEB Scheduled Rebasing Year | M28: 2029
A30: ="For which Rate Year is " &F14 & " seeking approval for its CoS application?" -> For which Rate Year is Elexicon Energy Inc.-Veridian Rate Zone seeking approval for its CoS application?
A32: =F14 & " is applying for:" -> Elexicon Energy Inc.-Veridian Rate Zone is applying for: | F32: ICM Rate Rider Approval
A34: Last Rebasing Year: | F34: =M26-F28 -> 2014
A36: Last COS OEB Application Number
A38: The most recent complete year for which actual billing and load data exists | F38: =M26-2 -> 2024
E40: Current IPI | F40: 0.036
E42: Strech Factor Assigned to Middle Cohort* | F42: III
E44: Stretch Factor Value | F44: 0.003
E46: Price Cap Index | F46: =F40-F44 -> 0.033
A48: Based on the inputs above, the growth factor utilized in the Materiality Threshold Calculation will be determined by: | F48: =CONCATENATE("Revenues Based on ",IF($F$26="COS",$M$26&" Test Year Distribution Revenues",MAX(F34,F38) & IF(F38>F34," Actual Distribution Demand"," Board-Approved Distribution Demand"))) -> Revenues Based on 2024 Actual Distribution Demand | I48: =LEFT(RIGHT(F48,LEN(F48)-18),4) -> 2024
F49: =CONCATENATE("Revenues Based on ",IF(F26="COS",F38&" Actual Distribution Revenues", IF(F34>F38,F38,IF(F34=F38,F34-1,F34)) & IF(F38>F34, " Board-Approved Distribution Demand", " Actual Distribution Demand"))) -> Revenues Based on 2014 Board-Approved Distribution Demand | I49: =LEFT(RIGHT(F49,LEN(F49)-18),4) -> 2014
B51: Notes
C53: Pale green cells represent input cells.
C55: Pale blue cells represent drop-down lists. The applicant should select the appropriate item from the drop-down list.
C57: White cells contain fixed values, automatically generated values or formulae.
A60: This Workbook Model is protected by copyright and is being made available to you solely for the purpose of filing your ICM application. You may use and copy this model for that purpose, and provide a copy of this model to any person that is advising or assisting you in that regard. Except as indicated above, any copying, reproduction, publication, sale, adaptation, translation, modification, reverse engineering or other use or dissemination of this model without the express written consent of the Ontario Energy Board is prohibited. If you provide a copy of this model to a person that is advising or assisting you in preparing the application or reviewing your draft rate order, you must ensure that the person understands and agrees to the restrictions noted above. While this model has been provided in Excel format and is required to be filed with the applications, the onus remains on the applicant to ensure the accuracy of the data and the results. *As per ACM/ICM policy, the middle cohort stretch factor is applied to all ACM/ICM applications.
A61: OEB policies regarding rate-setting and rebasing following distributor consolidations could allow a distributor to not rebase rates for up to ten years. A distributor could also apply for and receive OEB approval to defer rebasing. If a distributor is under Price Cap IR for more than four years after rebasing and applies for an ICM, this spreadsheet will need to be adapted to accommodate those circumstances. The distributor should contact OEB staff to discuss the circumstances so that a customized model can be provided.

Sheet 2. Rate Class Selection
A12: Select the appropriate rate classes as they appear on your most recent Board-Approved Tariff of Rates and Charges, excluding the MicroFit Class.
O13: Once all rate class classifications have been entered, please press the update button.
A14: How many classes are on your most recent Board-Approved Tariff of Rates and Charges? | J14: 9
A16: Select Your Rate Classes from the Blue Cells below. Please ensure that a rate class is assigned to each shaded cell.
B18: Rate Class Classification
A19: 1 | B19: RESIDENTIAL
A20: 2 | B20: SEASONAL RESIDENTIAL
A21: 3 | B21: GENERAL SERVICE LESS THAN 50 kW
A22: 4 | B22: GENERAL SERVICE 50 TO 2,999 KW
A23: 5 | B23: GENERAL SERVICE 3,000 TO 4,999 KW
A24: 6 | B24: LARGE USE
A25: 7 | B25: UNMETERED SCATTERED LOAD
A26: 8 | B26: SENTINEL LIGHTING
A27: 9 | B27: STREET LIGHTING

Sheet 3. Growth Factor - NUM_CALC1
A13: ="Input the billing determinants associated with " & '1. Information Sheet'!F14 & "'s " & '1. Information Sheet'!F48 & ". Input the current approved distribution rates. Sheets 4 & 5 calculate the NUMERATOR portion of the growth factor calculation." -> Input the billing determinants associated with Elexicon Energy Inc.-Veridian Rate Zone's Revenues Based on 2024 Actual Distribution Demand. Input the current approved distribution rates. Sheets 4 & 5 calculate the NUMERATOR portion of the growth factor calculation.
C15: =RIGHT('1. Information Sheet'!F48,LEN('1. Information Sheet'!F48)-18) -> 2024 Actual Distribution Demand | G15: =IF('1. Information Sheet'!F26="COS","Proposed Distribution Rates","Current Approved Distribution Rates") -> Current Approved Distribution Rates
A16: Rate Class | B16: Units | C16: Billed Customers or Connections | D16: Billed kWh | E16: Billed kW (if applicable) | G16: Monthly Service Charge | H16: Distribution Volumetric Rate kWh | I16: Distribution Volumetric Rate kW
A17: RESIDENTIAL | B17: $/kWh | C17: 118313 | D17: 1031246130 | E17: 0 | G17: 31.71
A18: SEASONAL RESIDENTIAL | B18: $/kWh | C18: 1560 | D18: 12254148 | E18: 0 | G18: 57.92
A19: GENERAL SERVICE LESS THAN 50 kW | B19: $/kWh | C19: 9506 | D19: 294204123 | E19: 0 | G19: 20.56 | H19: 0.0207
A20: GENERAL SERVICE 50 TO 2,999 KW | B20: $/kW | C20: 1075 | D20: 947810445 | E20: 2196478 | G20: 131.37 | I20: 4.053
A21: GENERAL SERVICE 3,000 TO 4,999 KW | B21: $/kW | C21: 5 | D21: 91496325 | E21: 210721 | G21: 6902.97 | I21: 2.5676
A22: LARGE USE | B22: $/kW | C22: 5 | D22: 309975107 | E22: 530618 | G22: 10369.67 | I22: 3.6163
A23: UNMETERED SCATTERED LOAD | B23: $/kWh | C23: 798 | D23: 4542089 | E23: 0 | G23: 8.39 | H23: 0.0206
A24: SENTINEL LIGHTING | B24: $/kW | C24: 236 | D24: 216725 | E24: 602 | G24: 5.52 | I24: 16.695
A25: STREET LIGHTING | B25: $/kW | C25: 33008 | D25: 11582548 | E25: 32169 | G25: 0.86 | I25: 4.565

Sheet 4. Growth Factor - NUM_CALC2
A12: =IF('1. Information Sheet'!F26="COS", "Calculation of " & '1. Information Sheet'!M26 & " Revenue Requirement. No input required.", "Calculation of pro forma " & '1. Information Sheet'!F34 & " Revenues. No input required.") -> Calculation of pro forma 2014 Revenues. No input required.
C14: ='3. Growth Factor - NUM_CALC1'!C15 -> 2024 Actual Distribution Demand | G14: ='3. Growth Factor - NUM_CALC1'!G15:I15 -> Current Approved Distribution Rates
A15: Rate Class | C15: Billed Customers or Connections | D15: Billed kWh | E15: Billed kW (if applicable) | G15: Monthly Service Charge | H15: Distribution Volumetric Rate kWh | I15: Distribution Volumetric Rate kW | K15: Service Charge Revenue | L15: Distribution Volumetric Rate Revenue kWh | M15: Distribution Volumetric Rate Revenue kW | N15: Revenues from Rates | P15: Service Charge % Revenue | Q15: Distribution Volumetric Rate % Revenue kWh | R15: Distribution Volumetric Rate % Revenue kW | S15: Total % Revenue
C16: A | D16: B | E16: C | G16: D | H16: E | I16: F | K16: G | L16: H | M16: I | N16: J | P16: K = G / J | Q16: L = H / J | R16: M = I / J | S16: N
A17: RESIDENTIAL | C17: ='3. Growth Factor - NUM_CALC1'!C17 -> 118313 | D17: ='3. Growth Factor - NUM_CALC1'!D17 -> 1031246130 | E17: ='3. Growth Factor - NUM_CALC1'!E17 -> 0 | G17: ='3. Growth Factor - NUM_CALC1'!G17 -> 31.71 | H17: ='3. Growth Factor - NUM_CALC1'!H17 -> 0 | I17: ='3. Growth Factor - NUM_CALC1'!I17 -> 0 | K17: =G17*C17*12 -> 45020462.76 | L17: =H17*D17 -> 0 | M17: =I17*E17 -> 0 | N17: =SUM(K17,L17,M17) -> 45020462.76 | P17: =IF(ISERROR(K17/N17),0,ROUND(K17/N17,3)) -> 1 | Q17: =IF(ISERROR(L17/N17),0,ROUND(L17/N17,3)) -> 0 | R17: =IF(ISERROR(M17/N17),0,ROUND(M17/N17,3)) -> 0 | S17: =N17/N26 -> 0.6494544139
A18: SEASONAL RESIDENTIAL | C18: ='3. Growth Factor - NUM_CALC1'!C18 -> 1560 | D18: ='3. Growth Factor - NUM_CALC1'!D18 -> 12254148 | E18: ='3. Growth Factor - NUM_CALC1'!E18 -> 0 | G18: ='3. Growth Factor - NUM_CALC1'!G18 -> 57.92 | H18: ='3. Growth Factor - NUM_CALC1'!H18 -> 0 | I18: ='3. Growth Factor - NUM_CALC1'!I18 -> 0 | K18: 1084262.4 | L18: 0 | M18: 0 | N18: 1084262.4 | P18: 1 | Q18: 0 | R18: 0 | S18: =N18/N26 -> 0.01564130971
A19: GENERAL SERVICE LESS THAN 50 kW | C19: ='3. Growth Factor - NUM_CALC1'!C19 -> 9506 | D19: ='3. Growth Factor - NUM_CALC1'!D19 -> 294204123 | E19: ='3. Growth Factor - NUM_CALC1'!E19 -> 0 | G19: ='3. Growth Factor - NUM_CALC1'!G19 -> 20.56 | H19: ='3. Growth Factor - NUM_CALC1'!H19 -> 0.0207 | I19: ='3. Growth Factor - NUM_CALC1'!I19 -> 0 | K19: 2345320.32 | L19: 6090025.346 | M19: 0 | N19: 8435345.666 | P19: 0.278 | Q19: 0.722 | R19: 0 | S19: =N19/N26 -> 0.1216862764
A20: GENERAL SERVICE 50 TO 2,999 KW | C20: ='3. Growth Factor - NUM_CALC1'!C20 -> 1075 | D20: ='3. Growth Factor - NUM_CALC1'!D20 -> 947810445 | E20: ='3. Growth Factor - NUM_CALC1'!E20 -> 2196478 | G20: ='3. Growth Factor - NUM_CALC1'!G20 -> 131.37 | H20: ='3. Growth Factor - NUM_CALC1'!H20 -> 0 | I20: ='3. Growth Factor - NUM_CALC1'!I20 -> 4.053 | K20: 1694673 | L20: 0 | M20: 8902325.334 | N20: 10596998.33 | P20: 0.16 | Q20: 0 | R20: 0.84 | S20: =N20/N26 -> 0.1528697601
A21: GENERAL SERVICE 3,000 TO 4,999 KW | C21: ='3. Growth Factor - NUM_CALC1'!C21 -> 5 | D21: ='3. Growth Factor - NUM_CALC1'!D21 -> 91496325 | E21: ='3. Growth Factor - NUM_CALC1'!E21 -> 210721 | G21: ='3. Growth Factor - NUM_CALC1'!G21 -> 6902.97 | H21: ='3. Growth Factor - NUM_CALC1'!H21 -> 0 | I21: ='3. Growth Factor - NUM_CALC1'!I21 -> 2.5676 | K21: 414178.2 | L21: 0 | M21: 541047.2396 | N21: 955225.4396 | P21: 0.434 | Q21: 0 | R21: 0.566 | S21: =N21/N26 -> 0.01377985343
A22: LARGE USE | C22: ='3. Growth Factor - NUM_CALC1'!C22 -> 5 | D22: ='3. Growth Factor - NUM_CALC1'!D22 -> 309975107 | E22: ='3. Growth Factor - NUM_CALC1'!E22 -> 530618 | G22: ='3. Growth Factor - NUM_CALC1'!G22 -> 10369.67 | H22: ='3. Growth Factor - NUM_CALC1'!H22 -> 0 | I22: ='3. Growth Factor - NUM_CALC1'!I22 -> 3.6163 | K22: 622180.2 | L22: 0 | M22: 1918873.873 | N22: 2541054.073 | P22: 0.245 | Q22: 0 | R22: 0.755 | S22: =N22/N26 -> 0.03665663751
A23: UNMETERED SCATTERED LOAD | C23: ='3. Growth Factor - NUM_CALC1'!C23 -> 798 | D23: ='3. Growth Factor - NUM_CALC1'!D23 -> 4542089 | E23: ='3. Growth Factor - NUM_CALC1'!E23 -> 0 | G23: ='3. Growth Factor - NUM_CALC1'!G23 -> 8.39 | H23: ='3. Growth Factor - NUM_CALC1'!H23 -> 0.0206 | I23: ='3. Growth Factor - NUM_CALC1'!I23 -> 0 | K23: 80342.64 | L23: 93567.0334 | M23: 0 | N23: 173909.6734 | P23: 0.462 | Q23: 0.538 | R23: 0 | S23: =N23/N26 -> 0.002508779299
A24: SENTINEL LIGHTING | C24: ='3. Growth Factor - NUM_CALC1'!C24 -> 236 | D24: ='3. Growth Factor - NUM_CALC1'!D24 -> 216725 | E24: ='3. Growth Factor - NUM_CALC1'!E24 -> 602 | G24: ='3. Growth Factor - NUM_CALC1'!G24 -> 5.52 | H24: ='3. Growth Factor - NUM_CALC1'!H24 -> 0 | I24: ='3. Growth Factor - NUM_CALC1'!I24 -> 16.695 | K24: 15632.64 | L24: 0 | M24: 10050.39 | N24: 25683.03 | P24: 0.609 | Q24: 0 | R24: 0.391 | S24: =N24/N26 -> 0.00037049724
A25: STREET LIGHTING | C25: ='3. Growth Factor - NUM_CALC1'!C25 -> 33008 | D25: ='3. Growth Factor - NUM_CALC1'!D25 -> 11582548 | E25: ='3. Growth Factor - NUM_CALC1'!E25 -> 32169 | G25: ='3. Growth Factor - NUM_CALC1'!G25 -> 0.86 | H25: ='3. Growth Factor - NUM_CALC1'!H25 -> 0 | I25: ='3. Growth Factor - NUM_CALC1'!I25 -> 4.565 | K25: 340642.56 | L25: 0 | M25: 146851.485 | N25: 487494.045 | P25: 0.699 | Q25: 0 | R25: 0.301 | S25: =N25/N26 -> 0.007032472344
A26: Total | C26: =SUM(C17:C25) -> 164506 | D26: =SUM(D17:D25) -> 2703327640 | E26: =SUM(E17:E25) -> 2970588 | K26: =SUM(K17:K25) -> 51617694.72 | L26: =SUM(L17:L25) -> 6183592.379 | M26: =SUM(M17:M25) -> 11519148.32 | N26: =SUM(N17:N25) -> 69320435.42 | S26: =SUM(S17:S25) -> 1

Sheet 5. Rev_Requ_Check
A8: Applicants Rate Base | C8: =IF('1. Information Sheet'!F26="COS",CONCATENATE('1. Information Sheet'!M26," Test Year COS Rebasing"),CONCATENATE("Last COS Rebasing: ",'1. Information Sheet'!F34)) -> Last COS Rebasing: 2014
A9: Average Net Fixed Assets
A10: Gross Fixed Assets - Re-based Opening | C10: ='[2]5. Rev_Requ_Check'!$C$10 -> 404954146 | D10: A
A11: Add: CWIP Re-based Opening | D11: B
A12: Re-based Capital Additions | C12: ='[2]5. Rev_Requ_Check'!$C$12 -> 25483259 | D12: C
A13: Re-based Capital Disposals | D13: D
A14: Re-based Capital Retirements | D14: E
A15: Deduct: CWIP Re-based Closing | D15: F
A16: Gross Fixed Assets - Re-based Closing | C16: =SUM(C10:C15) -> 430437405 | D16: G
A17: Average Gross Fixed Assets | E17: =(C10+C16)/2 -> 417695775.5 | F17: H = ( A + G ) / 2
A19: Accumulated Depreciation - Re-based Opening | C19: ='[2]5. Rev_Requ_Check'!$C$19 -> 216999685 | D19: I
A20: Re-based Depreciation Expense | C20: ='[2]5. Rev_Requ_Check'!$C$20 -> 11232271 | D20: J
A21: Re-based Disposals | D21: K
A22: Re-based Retirements | D22: L
A23: Accumulated Depreciation - Re-based Closing | C23: =SUM(C19:C22) -> 228231956 | D23: M
A24: Average Accumulated Depreciation | E24: =SUM(C19,C23)/2 -> 222615820.5 | F24: N = ( I + M ) / 2
A26: Average Net Fixed Assets | E26: =E17-E24 -> 195079955 | F26: O = H - N
A28: Working Capital Allowance
A29: Working Capital Allowance Base | C29: ='[2]5. Rev_Requ_Check'!$C$29 -> 321090472 | D29: P
A30: Working Capital Allowance Rate | C30: ='[2]5. Rev_Requ_Check'!$C$30 -> 0.134 | D30: Q
A31: Working Capital Allowance | E31: =C29*C30 -> 43026123.25 | F31: R = P * Q
A33: Rate Base | E33: =SUM(E26,E31) -> 238106078.2 | F33: S = O + R
A35: Return on Rate Base
A36: Deemed ShortTerm Debt % | C36: 0.04 | D36: T | E36: =E33*C36 -> 9524243.13 | F36: W = S * T
A37: Deemed Long Term Debt % | C37: ='[2]5. Rev_Requ_Check'!$C$37 -> 0.56 | D37: U | E37: =E33*C37 -> 133339403.8 | F37: X = S * U
A38: Deemed Equity % | C38: =1-C36-C37 -> 0.4 | D38: V | E38: =E33*C38 -> 95242431.3 | F38: Y = S * V
A40: Short Term Interest | C40: ='[2]5. Rev_Requ_Check'!$C$40 -> 0.0211 | D40: Z | E40: =E36*C40 -> 200961.53 | F40: AC = W * Z
A41: Long Term Interest | C41: ='[2]5. Rev_Requ_Check'!$C$41 -> 0.0494 | D41: AA | E41: =E37*C41 -> 6586966.549 | F41: AD = X * AA
A42: Return on Equity | C42: ='[2]5. Rev_Requ_Check'!$C$42 -> 0.0936 | D42: AB | E42: =E38*C42 -> 8914691.57 | F42: AE = Y * AB
A43: Return on Rate Base | E43: =SUM(E40:E42) -> 15702619.65 | F43: AF = AC + AD + AE
A45: Distribution Expenses
A46: OM&A Expenses | C46: ='[2]5. Rev_Requ_Check'!$C$46 -> 26283692 | D46: AG
A47: Amortization | C47: ='[2]5. Rev_Requ_Check'!$C$47 -> 10646989 | D47: AH
A48: Ontario Capital Tax | D48: AI
A49: Grossed Up Taxes/PILs | C49: ='[2]5. Rev_Requ_Check'!$C$49 -> 1220938 | D49: AJ
A50: Low Voltage | D50: AK
A51: Transformer Allowance | D51: AL
D52: AM
D53: AN
D54: AO
E55: =SUM(C46:C54) -> 38151619 | F55: AP = SUM ( AG : AO )
A56: Revenue Offsets
A57: Specific Service Charges | C57: ='[2]5. Rev_Requ_Check'!$C$57 -> -1950179 | D57: AQ
A58: Late Payment Charges | C58: ='[2]5. Rev_Requ_Check'!$C$58 -> -494459 | D58: AR
A59: Other Distribution Income | C59: ='[2]5. Rev_Requ_Check'!$C$59 -> -968492 | D59: AS
A60: Other Income and Deductions | C60: ='[2]5. Rev_Requ_Check'!$C$60 -> -514173 | D60: AT | E60: =SUM(C57:C60) -> -3927303 | F60: AU = SUM ( AQ : AT )
A62: Revenue Requirement from Distribution Rates | E62: =SUM(E60,E55,E43) -> 49926935.65 | F62: AV = AF + AP + AU
A64: Rate Classes Revenue
A65: Rate Classes Revenue - Total (Sheet 4) | E65: ='4. Growth Factor - NUM_CALC2'!N26 -> 69320435.42 | F65: AW

Sheet 6. Growth Factor - DEN_CALC
A12: ="Input the billing determinants associated with "&'1. Information Sheet'!F14&"'s "&'1. Information Sheet'!F49&". This sheet calculates the DENOMINATOR portion of the growth factor calculation." -> Input the billing determinants associated with Elexicon Energy Inc.-Veridian Rate Zone's Revenues Based on 2014 Board-Approved Distribution Demand. This sheet calculates the DENOMINATOR portion of the growth factor calculation.
A13: Pro forma Revenue Calculation.
C14: =RIGHT('1. Information Sheet'!F49,LEN('1. Information Sheet'!F49)-18) -> 2014 Board-Approved Distribution Demand | G14: ='3. Growth Factor - NUM_CALC1'!G15 -> Current Approved Distribution Rates
A15: Rate Class | C15: Billed Customers or Connections | D15: Billed kWh | E15: Billed kW | G15: Monthly Service Charge | H15: Distribution Volumetric Rate kWh | I15: Distribution Volumetric Rate kW | K15: Service Charge Revenue | L15: Distribution Volumetric Rate Revenue kWh | M15: Distribution Volumetric Rate Revenue kW | N15: Total Revenue By Rate Class | P15: Service Charge % Revenue | Q15: Distribution Volumetric Rate % Revenue kWh | R15: Distribution Volumetric Rate % Revenue kW | S15: Total % Revenue
C16: A | D16: B | E16: C | G16: D | H16: E | I16: F | K16: G | L16: H | M16: I | N16: J | P16: K = G / Jtotal | Q16: L = H / Jtotal | R16: M = I / Jtotal | S16: N
A17: RESIDENTIAL | C17: 105999 | D17: 968772164 | E17: 0 | G17: ='3. Growth Factor - NUM_CALC1'!G17 -> 31.71 | H17: ='3. Growth Factor - NUM_CALC1'!H17 -> 0 | I17: ='3. Growth Factor - NUM_CALC1'!I17 -> 0 | K17: =G17*C17*12 -> 40334739.48 | L17: =H17*D17 -> 0 | M17: =I17*E17 -> 0 | N17: =SUM(K17,L17,M17) -> 40334739.48 | P17: =IF(ISERROR(K17/N26),0,ROUND(K17/N26,3)) -> 0.623 | Q17: =IF(ISERROR(L17/N26),0,ROUND(L17/N26,3)) -> 0 | R17: =IF(ISERROR(M17/N26),0,ROUND(M17/N26,3)) -> 0 | S17: =N17/N26 -> 0.6226286706
A18: SEASONAL RESIDENTIAL | C18: 1590 | D18: 9089444 | E18: 0 | G18: ='3. Growth Factor - NUM_CALC1'!G18 -> 57.92 | H18: ='3. Growth Factor - NUM_CALC1'!H18 -> 0 | I18: ='3. Growth Factor - NUM_CALC1'!I18 -> 0 | K18: 1105113.6 | L18: 0 | M18: 0 | N18: 1105113.6 | P18: =IF(ISERROR(K18/N26),0,ROUND(K18/N26,3)) -> 0.017 | Q18: =IF(ISERROR(L18/N26),0,ROUND(L18/N26,3)) -> 0 | R18: =IF(ISERROR(M18/N26),0,ROUND(M18/N26,3)) -> 0 | S18: =N18/N26 -> 0.01705912621
A19: GENERAL SERVICE LESS THAN 50 kW | C19: 8781 | D19: 299645543 | E19: 0 | G19: ='3. Growth Factor - NUM_CALC1'!G19 -> 20.56 | H19: ='3. Growth Factor - NUM_CALC1'!H19 -> 0.0207 | I19: ='3. Growth Factor - NUM_CALC1'!I19 -> 0 | K19: 2166448.32 | L19: 6202662.74 | M19: 0 | N19: 8369111.06 | P19: =IF(ISERROR(K19/N26),0,ROUND(K19/N26,3)) -> 0.033 | Q19: =IF(ISERROR(L19/N26),0,ROUND(L19/N26,3)) -> 0.096 | R19: =IF(ISERROR(M19/N26),0,ROUND(M19/N26,3)) -> 0 | S19: =N19/N26 -> 0.1291900868
A20: GENERAL SERVICE 50 TO 2,999 KW | C20: 1087 | D20: 0 | E20: 2566405 | G20: ='3. Growth Factor - NUM_CALC1'!G20 -> 131.37 | H20: ='3. Growth Factor - NUM_CALC1'!H20 -> 0 | I20: ='3. Growth Factor - NUM_CALC1'!I20 -> 4.053 | K20: 1713590.28 | L20: 0 | M20: 10401639.46 | N20: 12115229.74 | P20: =IF(ISERROR(K20/N26),0,ROUND(K20/N26,3)) -> 0.026 | Q20: =IF(ISERROR(L20/N26),0,ROUND(L20/N26,3)) -> 0 | R20: =IF(ISERROR(M20/N26),0,ROUND(M20/N26,3)) -> 0.161 | S20: =N20/N26 -> 0.1870171839
A21: GENERAL SERVICE 3,000 TO 4,999 KW | C21: 5 | D21: 0 | E21: 259661 | G21: ='3. Growth Factor - NUM_CALC1'!G21 -> 6902.97 | H21: ='3. Growth Factor - NUM_CALC1'!H21 -> 0 | I21: ='3. Growth Factor - NUM_CALC1'!I21 -> 2.5676 | K21: 414178.2 | L21: 0 | M21: 666705.5836 | N21: 1080883.784 | P21: =IF(ISERROR(K21/N26),0,ROUND(K21/N26,3)) -> 0.006 | Q21: =IF(ISERROR(L21/N26),0,ROUND(L21/N26,3)) -> 0 | R21: =IF(ISERROR(M21/N26),0,ROUND(M21/N26,3)) -> 0.01 | S21: =N21/N26 -> 0.01668510177
A22: LARGE USE | C22: 2 | D22: 0 | E22: 193776 | G22: ='3. Growth Factor - NUM_CALC1'!G22 -> 10369.67 | H22: ='3. Growth Factor - NUM_CALC1'!H22 -> 0 | I22: ='3. Growth Factor - NUM_CALC1'!I22 -> 3.6163 | K22: 248872.08 | L22: 0 | M22: 700752.1488 | N22: 949624.2288 | P22: =IF(ISERROR(K22/N26),0,ROUND(K22/N26,3)) -> 0.004 | Q22: =IF(ISERROR(L22/N26),0,ROUND(L22/N26,3)) -> 0 | R22: =IF(ISERROR(M22/N26),0,ROUND(M22/N26,3)) -> 0.011 | S22: =N22/N26 -> 0.01465890889
A23: UNMETERED SCATTERED LOAD | C23: 929 | D23: 4496870 | E23: 0 | G23: ='3. Growth Factor - NUM_CALC1'!G23 -> 8.39 | H23: ='3. Growth Factor - NUM_CALC1'!H23 -> 0.0206 | I23: ='3. Growth Factor - NUM_CALC1'!I23 -> 0 | K23: 93531.72 | L23: 92635.522 | M23: 0 | N23: 186167.242 | P23: =IF(ISERROR(K23/N26),0,ROUND(K23/N26,3)) -> 0.001 | Q23: =IF(ISERROR(L23/N26),0,ROUND(L23/N26,3)) -> 0.001 | R23: =IF(ISERROR(M23/N26),0,ROUND(M23/N26,3)) -> 0 | S23: =N23/N26 -> 0.002873777391
A24: SENTINEL LIGHTING | C24: 475 | D24: 0 | E24: 1580 | G24: ='3. Growth Factor - NUM_CALC1'!G24 -> 5.52 | H24: ='3. Growth Factor - NUM_CALC1'!H24 -> 0 | I24: ='3. Growth Factor - NUM_CALC1'!I24 -> 16.695 | K24: 31464 | L24: 0 | M24: 26378.1 | N24: 57842.1 | P24: =IF(ISERROR(K24/N26),0,ROUND(K24/N26,3)) -> 0 | Q24: =IF(ISERROR(L24/N26),0,ROUND(L24/N26,3)) -> 0 | R24: =IF(ISERROR(M24/N26),0,ROUND(M24/N26,3)) -> 0 | S24: =N24/N26 -> 0.000892881677
A25: STREET LIGHTING | C25: 29943 | D25: 0 | E25: 59945 | G25: ='3. Growth Factor - NUM_CALC1'!G25 -> 0.86 | H25: ='3. Growth Factor - NUM_CALC1'!H25 -> 0 | I25: ='3. Growth Factor - NUM_CALC1'!I25 -> 4.565 | K25: 309011.76 | L25: 0 | M25: 273648.925 | N25: 582660.685 | P25: =IF(ISERROR(K25/N26),0,ROUND(K25/N26,3)) -> 0.005 | Q25: =IF(ISERROR(L25/N26),0,ROUND(L25/N26,3)) -> 0 | R25: =IF(ISERROR(M25/N26),0,ROUND(M25/N26,3)) -> 0.004 | S25: =N25/N26 -> 0.008994262821
A26: Total | C26: =SUM(C17:C25) -> 148811 | D26: =SUM(D17:D25) -> 1282004021 | E26: =SUM(E17:E25) -> 3081367 | K26: =SUM(K17:K25) -> 46416949.44 | L26: =SUM(L17:L25) -> 6295298.262 | M26: =SUM(M17:M25) -> 12069124.22 | N26: =SUM(N17:N25) -> 64781371.92 | S26: =SUM(S17:S25) -> 1

Sheet 7. Revenue Proportions
A12: Current Revenue from Rates
A13: This sheet is used to determine the applicant's most current allocation of revenues (after the most recent revenue to cost ratio adjustment, if applicable) to appropriately allocate the incremental revenue requirement to the classes.
C14: =IF('1. Information Sheet'!F26="COS", "Proposed Base Rates in Current CoS Application", "Current OEB-Approved Base Rates") -> Current OEB-Approved Base Rates | G14: ='3. Growth Factor - NUM_CALC1'!C15 -> 2024 Actual Distribution Demand
A15: Rate Class | C15: Monthly Service Charge | D15: Distribution Volumetric Rate kWh | E15: Distribution Volumetric Rate kW | G15: Re-based Billed Customers or Connections | H15: Re-based Billed kWh | I15: Re-based Billed kW | K15: Current Base Service Charge Revenue | L15: Current Base Distribution Volumetric Rate kWh Revenue | M15: Current Base Distribution Volumetric Rate kW Revenue | N15: Total Current Base Revenue | P15: Service Charge % Total Revenue | Q15: Distribution Volumetric Rate % Total Revenue | R15: Distribution Volumetric Rate % Total Revenue | S15: Total % Revenue
C16: A | D16: B | E16: C | G16: D | H16: E | I16: F | K16: G | L16: H | M16: I | N16: J | P16: L = G / Jtotal | Q16: M = H / Jtotal | R16: N = I / Jtotal | S16: O
A17: RESIDENTIAL | C17: ='3. Growth Factor - NUM_CALC1'!G17 -> 31.71 | D17: ='3. Growth Factor - NUM_CALC1'!H17 -> 0 | E17: ='3. Growth Factor - NUM_CALC1'!I17 -> 0 | G17: ='3. Growth Factor - NUM_CALC1'!C17 -> 118313 | H17: ='3. Growth Factor - NUM_CALC1'!D17 -> 1031246130 | I17: ='3. Growth Factor - NUM_CALC1'!E17 -> 0 | K17: =G17*C17*12 -> 45020462.76 | L17: =H17*D17 -> 0 | M17: =I17*E17 -> 0 | N17: =SUM(K17,L17,M17) -> 45020462.76 | P17: =IF(ISERROR(K17/N26),0,K17/N26) -> 0.6494544139 | Q17: =IF(ISERROR(L17/N26),0,L17/N26) -> 0 | R17: =IF(ISERROR(M17/N26),0,M17/N26) -> 0 | S17: =N17/N26 -> 0.6494544139
A18: SEASONAL RESIDENTIAL | C18: ='3. Growth Factor - NUM_CALC1'!G18 -> 57.92 | D18: ='3. Growth Factor - NUM_CALC1'!H18 -> 0 | E18: ='3. Growth Factor - NUM_CALC1'!I18 -> 0 | G18: ='3. Growth Factor - NUM_CALC1'!C18 -> 1560 | H18: ='3. Growth Factor - NUM_CALC1'!D18 -> 12254148 | I18: ='3. Growth Factor - NUM_CALC1'!E18 -> 0 | K18: 1084262.4 | L18: 0 | M18: 0 | N18: 1084262.4 | P18: =IF(ISERROR(K18/N26),0,K18/N26) -> 0.01564130971 | Q18: =IF(ISERROR(L18/N26),0,L18/N26) -> 0 | R18: =IF(ISERROR(M18/N26),0,M18/N26) -> 0 | S18: =N18/N26 -> 0.01564130971
A19: GENERAL SERVICE LESS THAN 50 kW | C19: ='3. Growth Factor - NUM_CALC1'!G19 -> 20.56 | D19: ='3. Growth Factor - NUM_CALC1'!H19 -> 0.0207 | E19: ='3. Growth Factor - NUM_CALC1'!I19 -> 0 | G19: ='3. Growth Factor - NUM_CALC1'!C19 -> 9506 | H19: ='3. Growth Factor - NUM_CALC1'!D19 -> 294204123 | I19: ='3. Growth Factor - NUM_CALC1'!E19 -> 0 | K19: 2345320.32 | L19: 6090025.346 | M19: 0 | N19: 8435345.666 | P19: =IF(ISERROR(K19/N26),0,K19/N26) -> 0.03383302926 | Q19: =IF(ISERROR(L19/N26),0,L19/N26) -> 0.08785324716 | R19: =IF(ISERROR(M19/N26),0,M19/N26) -> 0 | S19: =N19/N26 -> 0.1216862764
A20: GENERAL SERVICE 50 TO 2,999 KW | C20: ='3. Growth Factor - NUM_CALC1'!G20 -> 131.37 | D20: ='3. Growth Factor - NUM_CALC1'!H20 -> 0 | E20: ='3. Growth Factor - NUM_CALC1'!I20 -> 4.053 | G20: ='3. Growth Factor - NUM_CALC1'!C20 -> 1075 | H20: ='3. Growth Factor - NUM_CALC1'!D20 -> 947810445 | I20: ='3. Growth Factor - NUM_CALC1'!E20 -> 2196478 | K20: 1694673 | L20: 0 | M20: 8902325.334 | N20: 10596998.33 | P20: =IF(ISERROR(K20/N26),0,K20/N26) -> 0.02444694684 | Q20: =IF(ISERROR(L20/N26),0,L20/N26) -> 0 | R20: =IF(ISERROR(M20/N26),0,M20/N26) -> 0.1284228133 | S20: =N20/N26 -> 0.1528697601
A21: GENERAL SERVICE 3,000 TO 4,999 KW | C21: ='3. Growth Factor - NUM_CALC1'!G21 -> 6902.97 | D21: ='3. Growth Factor - NUM_CALC1'!H21 -> 0 | E21: ='3. Growth Factor - NUM_CALC1'!I21 -> 2.5676 | G21: ='3. Growth Factor - NUM_CALC1'!C21 -> 5 | H21: ='3. Growth Factor - NUM_CALC1'!D21 -> 91496325 | I21: ='3. Growth Factor - NUM_CALC1'!E21 -> 210721 | K21: 414178.2 | L21: 0 | M21: 541047.2396 | N21: 955225.4396 | P21: =IF(ISERROR(K21/N26),0,K21/N26) -> 0.005974835523 | Q21: =IF(ISERROR(L21/N26),0,L21/N26) -> 0 | R21: =IF(ISERROR(M21/N26),0,M21/N26) -> 0.007805017904 | S21: =N21/N26 -> 0.01377985343
A22: LARGE USE | C22: ='3. Growth Factor - NUM_CALC1'!G22 -> 10369.67 | D22: ='3. Growth Factor - NUM_CALC1'!H22 -> 0 | E22: ='3. Growth Factor - NUM_CALC1'!I22 -> 3.6163 | G22: ='3. Growth Factor - NUM_CALC1'!C22 -> 5 | H22: ='3. Growth Factor - NUM_CALC1'!D22 -> 309975107 | I22: ='3. Growth Factor - NUM_CALC1'!E22 -> 530618 | K22: 622180.2 | L22: 0 | M22: 1918873.873 | N22: 2541054.073 | P22: =IF(ISERROR(K22/N26),0,K22/N26) -> 0.008975422561 | Q22: =IF(ISERROR(L22/N26),0,L22/N26) -> 0 | R22: =IF(ISERROR(M22/N26),0,M22/N26) -> 0.02768121495 | S22: =N22/N26 -> 0.03665663751
A23: UNMETERED SCATTERED LOAD | C23: ='3. Growth Factor - NUM_CALC1'!G23 -> 8.39 | D23: ='3. Growth Factor - NUM_CALC1'!H23 -> 0.0206 | E23: ='3. Growth Factor - NUM_CALC1'!I23 -> 0 | G23: ='3. Growth Factor - NUM_CALC1'!C23 -> 798 | H23: ='3. Growth Factor - NUM_CALC1'!D23 -> 4542089 | I23: ='3. Growth Factor - NUM_CALC1'!E23 -> 0 | K23: 80342.64 | L23: 93567.0334 | M23: 0 | N23: 173909.6734 | P23: =IF(ISERROR(K23/N26),0,K23/N26) -> 0.001159003684 | Q23: =IF(ISERROR(L23/N26),0,L23/N26) -> 0.001349775616 | R23: =IF(ISERROR(M23/N26),0,M23/N26) -> 0 | S23: =N23/N26 -> 0.002508779299
A24: SENTINEL LIGHTING | C24: ='3. Growth Factor - NUM_CALC1'!G24 -> 5.52 | D24: ='3. Growth Factor - NUM_CALC1'!H24 -> 0 | E24: ='3. Growth Factor - NUM_CALC1'!I24 -> 16.695 | G24: ='3. Growth Factor - NUM_CALC1'!C24 -> 236 | H24: ='3. Growth Factor - NUM_CALC1'!D24 -> 216725 | I24: ='3. Growth Factor - NUM_CALC1'!E24 -> 602 | K24: 15632.64 | L24: 0 | M24: 10050.39 | N24: 25683.03 | P24: =IF(ISERROR(K24/N26),0,K24/N26) -> 0.0002255127208 | Q24: =IF(ISERROR(L24/N26),0,L24/N26) -> 0 | R24: =IF(ISERROR(M24/N26),0,M24/N26) -> 0.0001449845192 | S24: =N24/N26 -> 0.00037049724
A25: STREET LIGHTING | C25: ='3. Growth Factor - NUM_CALC1'!G25 -> 0.86 | D25: ='3. Growth Factor - NUM_CALC1'!H25 -> 0 | E25: ='3. Growth Factor - NUM_CALC1'!I25 -> 4.565 | G25: ='3. Growth Factor - NUM_CALC1'!C25 -> 33008 | H25: ='3. Growth Factor - NUM_CALC1'!D25 -> 11582548 | I25: ='3. Growth Factor - NUM_CALC1'!E25 -> 32169 | K25: 340642.56 | L25: 0 | M25: 146851.485 | N25: 487494.045 | P25: =IF(ISERROR(K25/N26),0,K25/N26) -> 0.004914027991 | Q25: =IF(ISERROR(L25/N26),0,L25/N26) -> 0 | R25: =IF(ISERROR(M25/N26),0,M25/N26) -> 0.002118444353 | S25: =N25/N26 -> 0.007032472344
A26: Total | K26: =SUM(K17:K25) -> 51617694.72 | L26: =SUM(L17:L25) -> 6183592.379 | M26: =SUM(M17:M25) -> 11519148.32 | N26: =SUM(N17:N25) -> 69320435.42 | S26: =SUM(S17:S25) -> 1

Sheet 8. Threshold Test
A8: No Input Required.
C9: =IF('1. Information Sheet'!F26 = "COS", "Preliminary Materiality Threshold Calculation", "Final Materiality Threshold Calculation") -> Final Materiality Threshold Calculation
C13: Cost of Service Rebasing Year | E13: =IF('1. Information Sheet'!F26="COS",'1. Information Sheet'!M26,'1. Information Sheet'!F34) -> 2014
C14: Price Cap IR Year in which Application is made | E14: =IF('1. Information Sheet'!F26="CoS", "COS",'1. Information Sheet'!F28) -> 12
C16: Price Cap Index | E16: ='1. Information Sheet'!F46 -> 0.033
C17: Growth Factor Calculation
C18: ='1. Information Sheet'!F48 -> Revenues Based on 2024 Actual Distribution Demand | E18: ='4. Growth Factor - NUM_CALC2'!N26 -> 69320435.42
C19: ='1. Information Sheet'!F49 -> Revenues Based on 2014 Board-Approved Distribution Demand | E19: ='6. Growth Factor - DEN_CALC'!N26 -> 64781371.92
C20: Growth Factor | E20: =IF(ISERROR(E18/E19-1),0,(E18/E19-1)/('1. Information Sheet'!I48-'1. Information Sheet'!I49)) -> 0.007006741849
C21: Dead Band | E21: 0.1
C22: Average Net Fixed Assets
C23: Gross Fixed Assets Opening | E23: ='5. Rev_Requ_Check'!C10 -> 404954146
C24: Add: CWIP Opening | E24: ='5. Rev_Requ_Check'!C11 -> 0
C25: Capital Additions | E25: ='5. Rev_Requ_Check'!C12 -> 25483259
C26: Capital Disposals | E26: ='5. Rev_Requ_Check'!C13 -> 0
C27: Capital Retirements | E27: ='5. Rev_Requ_Check'!C14 -> 0
C28: Deduct: CWIP Closing | E28: ='5. Rev_Requ_Check'!C15 -> 0
C29: Gross Fixed Assets - Closing | E29: ='5. Rev_Requ_Check'!C16 -> 430437405
C31: Average Gross Fixed Assets | E31: =(E23+E29)/2 -> 417695775.5
C33: Accumulated Depreciation - Opening | E33: ='5. Rev_Requ_Check'!C19 -> 216999685
C34: Depreciation Expense | E34: ='5. Rev_Requ_Check'!C20 -> 11232271
C35: Disposals | E35: ='5. Rev_Requ_Check'!C21 -> 0
C36: Retirements | E36: ='5. Rev_Requ_Check'!C22 -> 0
C37: Accumulated Depreciation - Closing | E37: ='5. Rev_Requ_Check'!C23 -> 228231956
C39: Average Accumulated Depreciation | E39: =(E33+E37)/2 -> 222615820.5
C41: Average Net Fixed Assets | E41: =E31-E39 -> 195079955
C44: Working Capital Allowance
C45: Working Capital Allowance Base | E45: ='5. Rev_Requ_Check'!C29 -> 321090472
C46: Working Capital Allowance Rate | E46: ='5. Rev_Requ_Check'!C30 -> 0.134
C47: Working Capital Allowance | E47: =E45*E46 -> 43026123.25
C49: Rate Base | E49: =E41+E47 -> 238106078.2
C51: Depreciation | E51: =E34 -> 11232271
C53: Threshold Value (varies by Price Cap IR Year subsequent to CoS rebasing)
C54: =CONCATENATE(" Price Cap IR Year ",E13+1) -> Price Cap IR Year 2015 | E54: =IF(ISERROR(1+((RB/d)*(g+PCI*(1+g)))*((1+g)*(1+PCI))^(1-1) + 10%), 0, 1+((RB/d)*(g+PCI*(1+g)))*((1+g)*(1+PCI))^(1-1) + 10%) -> 1.952980122
C55: =CONCATENATE(" Price Cap IR Year ",E13+2) -> Price Cap IR Year 2016 | E55: =IF(ISERROR(1+((RB/d)*(g+PCI*(1+g)))*((1+g)*(1+PCI))^(2-1) + 10%), 0, 1+((RB/d)*(g+PCI*(1+g)))*((1+g)*(1+PCI))^(2-1) + 10%) -> 1.987302305
C56: =CONCATENATE(" Price Cap IR Year ",E13+3) -> Price Cap IR Year 2017 | E56: =IF(ISERROR(1+((RB/d)*(g+PCI*(1+g)))*((1+g)*(1+PCI))^(3-1) + 10%), 0, 1+((RB/d)*(g+PCI*(1+g)))*((1+g)*(1+PCI))^(3-1) + 10%) -> 2.023005544
C57: =CONCATENATE(" Price Cap IR Year ",E13+4) -> Price Cap IR Year 2018 | E57: =IF(ISERROR(1+((RB/d)*(g+PCI*(1+g)))*((1+g)*(1+PCI))^(4-1) + 10%), 0, 1+((RB/d)*(g+PCI*(1+g)))*((1+g)*(1+PCI))^(4-1) + 10%) -> 2.060145408
C58: =CONCATENATE(" Price Cap IR Year ",E13+5) -> Price Cap IR Year 2019 | E58: =IF(ISERROR(1+((RB/d)*(g+PCI*(1+g)))*((1+g)*(1+PCI))^(5-1) + 10%), 0, 1+((RB/d)*(g+PCI*(1+g)))*((1+g)*(1+PCI))^(5-1) + 10%) -> 2.098779705
C59: =CONCATENATE(" Price Cap IR Year ",E13+6) -> Price Cap IR Year 2020 | E59: =IF(ISERROR(1+((RB/d)*(g+PCI*(1+g)))*((1+g)*(1+PCI))^(6-1) + 10%), 0, 1+((RB/d)*(g+PCI*(1+g)))*((1+g)*(1+PCI))^(6-1) + 10%) -> 2.138968567
C60: =CONCATENATE(" Price Cap IR Year ",E13+7) -> Price Cap IR Year 2021 | E60: =IF(ISERROR(1+((RB/d)*(g+PCI*(1+g)))*((1+g)*(1+PCI))^(7-1) + 10%), 0, 1+((RB/d)*(g+PCI*(1+g)))*((1+g)*(1+PCI))^(7-1) + 10%) -> 2.180774547
C61: =CONCATENATE(" Price Cap IR Year ",E13+8) -> Price Cap IR Year 2022 | E61: =IF(ISERROR(1+((RB/d)*(g+PCI*(1+g)))*((1+g)*(1+PCI))^(8-1) + 10%), 0, 1+((RB/d)*(g+PCI*(1+g)))*((1+g)*(1+PCI))^(8-1) + 10%) -> 2.224262715
C62: =CONCATENATE(" Price Cap IR Year ",E13+9) -> Price Cap IR Year 2023 | E62: =IF(ISERROR(1+((RB/d)*(g+PCI*(1+g)))*((1+g)*(1+PCI))^(9-1) + 10%), 0, 1+((RB/d)*(g+PCI*(1+g)))*((1+g)*(1+PCI))^(9-1) + 10%) -> 2.269500758
C63: =CONCATENATE(" Price Cap IR Year ",E13+10) -> Price Cap IR Year 2024 | E63: =IF(ISERROR(1+((RB/d)*(g+PCI*(1+g)))*((1+g)*(1+PCI))^(10-1) + 10%), 0, 1+((RB/d)*(g+PCI*(1+g)))*((1+g)*(1+PCI))^(10-1) + 10%) -> 2.316559087
C64: =CONCATENATE(" Price Cap IR Year ",E13+11) -> Price Cap IR Year 2025 | E64: =IF(ISERROR(1+((RB/d)*(g+PCI*(1+g)))*((1+g)*(1+PCI))^(11-1) + 10%), 0, 1+((RB/d)*(g+PCI*(1+g)))*((1+g)*(1+PCI))^(11-1) + 10%) -> 2.365510948
C65: =CONCATENATE(" Price Cap IR Year ",E13+12) -> Price Cap IR Year 2026 | E65: =IF(ISERROR(1+((RB/d)*(g+PCI*(1+g)))*((1+g)*(1+PCI))^(12-1) + 10%), 0, 1+((RB/d)*(g+PCI*(1+g)))*((1+g)*(1+PCI))^(12-1) + 10%) -> 2.416432533
C67: Threshold CAPEX
C68: =C54 -> Price Cap IR Year 2015 | E68: =IF(ISERROR(d*E54), "", d*E54) -> 21936401.98
C69: =C55 -> Price Cap IR Year 2016 | E69: 22321918.05
C70: =C56 -> Price Cap IR Year 2017 | E70: 22722946.5
C71: =C57 -> Price Cap IR Year 2018 | E71: 23140111.52
C72: =C58 -> Price Cap IR Year 2019 | E72: 23574062.41
C73: Price Cap IR Year 2020 | E73: 24025474.6
C74: Price Cap IR Year 2021 | E74: 24495050.7
C75: Price Cap IR Year 2022 | E75: 24983521.59
C76: Price Cap IR Year 2023 | E76: 25491647.54
C77: Price Cap IR Year 2024 | E77: 26020219.46
C78: Price Cap IR Year 2025 | E78: 26570060.03
C79: Price Cap IR Year 2026 | E79: 27142025.06
B81: Note 1: | C81: The growth factor g is annualized, depending on the number of years between the numerator and denominator for the calculation. Typically, for ACM review in a cost of service and in the fourth year of Price Cap IR, the ratio is divided by 2 to annualize it. No division is normally required for the first three years under Price Cap IR.

Sheet 9a. Proposed ACM Projects (hidden)
A11: Identify ALL Proposed ACM projects and related CAPEX costs in the relevant years
B13: Cost of Service | C13: Price Cap IR | G13: (if necessary)
B14: Test Year | C14: Year 1 | D14: Year 2 | E14: Year 3 | F14: Year 4 | G14: Year 5 | H14: Year 6 | I14: Year 7 | J14: Year 8 | K14: Year 9 | L14: Year 10
B15: ='1. Information Sheet'!K26 -> 0 | C15: =B15+1 -> 1 | D15: 2 | E15: 3 | F15: 4 | G15: 5 | H15: 6 | I15: 7 | J15: 8 | K15: 9 | L15: 10
A16: Distribution System Plan CAPEX
A18: Materiality Threshold | C18: =IF('8. Threshold Test'!$E$68="", 0, '8. Threshold Test'!$E$68) -> 21936401.98 | D18: =IF('8. Threshold Test'!$E$69="", 0, '8. Threshold Test'!$E$69) -> 22321918.05 | E18: =IF('8. Threshold Test'!$E$70="", 0, '8. Threshold Test'!$E$70) -> 22722946.5 | F18: =IF('8. Threshold Test'!$E$71="", 0, '8. Threshold Test'!$E$71) -> 23140111.52 | G18: =IF('8. Threshold Test'!$E$72="", 0, '8. Threshold Test'!$E$72) -> 23574062.41 | H18: =IF('8. Threshold Test'!$E$73="", 0, '8. Threshold Test'!$E$73) -> 24025474.6 | I18: =IF('8. Threshold Test'!$E$74="", 0, '8. Threshold Test'!$E$74) -> 24495050.7 | J18: =IF('8. Threshold Test'!$E$75="", 0, '8. Threshold Test'!$E$75) -> 24983521.59 | K18: =IF('8. Threshold Test'!$E$76="", 0, '8. Threshold Test'!$E$76) -> 25491647.54 | L18: =IF('8. Threshold Test'!$E$77="", 0, '8. Threshold Test'!$E$77) -> 26020219.46
A20: Maximum Eligible Incremental Capital (Forecasted CAPEX less Threshold) | C20: =MAX(0,C16-C18) -> 0 | D20: 0 | E20: 0 | F20: 0 | G20: 0 | H20: 0 | I20: 0 | J20: 0 | K20: 0 | L20: 0
A22: Maximum Eligible Incremental Capital (Forecasted Capex less Threshold) | C22: =IF(C18>C16,0,C16-C18) -> 0 | D22: 0 | E22: 0 | F22: 0 | G22: 0 | H22: 0 | I22: 0 | J22: 0 | K22: 0 | L22: 0
A24: Proposed Capital Projects Eligible for ACM treatment
B25: =B13 -> Cost of Service | C25: =C13 -> Price Cap IR | G25: (if necessary)
A26: Project Descriptions: | B26: Test Year | C26: Year 1 | D26: Year 2 | E26: Year 3 | F26: Year 4 | G26: Year 5 | H26: Year 6 | I26: Year 7 | J26: Year 8 | K26: Year 9 | L26: Year 10 | M26: Total
B27: =B15 -> 0 | C27: 1 | D27: 2 | E27: 3 | F27: 4 | G27: 5 | H27: 6 | I27: 7 | J27: 8 | K27: 9 | L27: 10
M28: =SUM(C28:F28) -> 0
M29: 0
M30: 0
M31: 0
M32: 0
M33: 0
M34: 0
M35: 0
M36: 0
M37: 0
M38: 0
M39: 0
M40: 0
M41: 0
M42: 0
M43: 0
M44: 0
M45: 0
M46: 0
M47: 0
A49: Total Cost of ACM Projects | C49: =SUM(C28:C47) -> 0 | D49: 0 | E49: 0 | F49: 0 | G49: 0 | H49: 0 | I49: 0 | J49: 0 | K49: 0 | L49: 0
A51: Maximum Allowed Incremental Capital | C51: =MIN(C49,C22) -> 0 | D51: 0 | E51: 0 | F51: 0 | G51: 0 | H51: 0 | I51: 0 | J51: 0 | K51: 0 | L51: 0

Sheet 9b. Proposed ACM ICM Projects
A11: Identify ALL Proposed ACM and ICM projects and related CAPEX costs in the relevant years
C13: Cost of Service | D13: Price Cap IR | G13: Price Cap IR | J13: Price Cap IR | M13: Price Cap IR
C14: Test Year | D14: Year 1 | G14: Year 2 | J14: Year 3 | M14: Year 4
C15: ='1. Information Sheet'!F34 -> 2014 | D15: =C15+1 -> 2015 | G15: =D15+1 -> 2016 | J15: =G15+1 -> 2017 | M15: =J15+1 -> 2018
A16: CAPEX1
A18: Materiality Threshold | D18: =IF('8. Threshold Test'!$E$68="", 0, '8. Threshold Test'!$E$68) -> 21936401.98 | G18: =IF('8. Threshold Test'!$E$69="", 0, '8. Threshold Test'!$E$69) -> 22321918.05 | J18: =IF('8. Threshold Test'!$E$70="", 0, '8. Threshold Test'!$E$70) -> 22722946.5 | M18: =IF('8. Threshold Test'!$E$71="", 0, '8. Threshold Test'!$E$71) -> 23140111.52
A20: Maximum Eligible Incremental Capital (Forecasted Capex less Threshold) | D20: =IF(D18>D16,0,D16-D18) -> 0 | G20: =IF(G18>G16,0,G16-G18) -> 0 | J20: =IF(J18>J16,0,J16-J18) -> 0 | M20: =IF(M18>M16,0,M16-M18) -> 0
C22: Test Year | D22: Year 1 | G22: Year 2 | J22: Year 3 | M22: Year 4
C23: =C15 -> 2014 | D23: =D15 -> 2015 | G23: =G15 -> 2016 | J23: =J15 -> 2017 | M23: =M15 -> 2018
A24: Project Descriptions: | B24: Type | D24: Proposed ACM/ICM | E24: Amortization Expense | F24: CCA | G24: Proposed ACM/ICM | H24: Amortization Expense | I24: CCA | J24: Proposed ACM/ICM | K24: Amortization Expense | L24: CCA | M24: Proposed ACM/ICM | N24: Amortization Expense | O24: CCA
A46: Total Cost of ACM/ICM Projects | D46: =SUM(D25:D44) -> 0 | E46: =SUM(E25:E44) -> 0 | F46: 0 | G46: 0 | H46: 0 | I46: 0 | J46: 0 | K46: 0 | L46: 0 | M46: 0 | N46: 0 | O46: 0
A48: Maximum Allowed Incremental Capital | D48: =MIN(D46,D20) -> 0 | G48: =MIN(G46,G20) -> 0 | J48: =MIN(J46,J20) -> 0 | M48: =MIN(M46,M20) -> 0
A50: 1. For the Cost of Service Test Year, CAPEX refers to the CAPEX approved in the DSP. For subsequent Price CAP IR years, the CAPEX to be entered is the actual CAPEX. For the current Price Cap IR year, the CAPEX to be entered is the proposed CAPEX including any ICM/updated ACM project CAPEX for the year. | D50: Price Cap IR (Deferred Rebasing) (if necessary) | G50: Price Cap IR (Deferred Rebasing) (if necessary) | J50: Price Cap IR (Deferred Rebasing) (if necessary) | M50: Price Cap IR (Deferred Rebasing) (if necessary)
D52: Price Cap IR | G52: Price Cap IR | J52: Price Cap IR | M52: Price Cap IR
D53: Year 5 | G53: Year 6 | J53: Year 7 | M53: Year 8
D54: =M15+1 -> 2019 | G54: =D54+1 -> 2020 | J54: =G54+1 -> 2021 | M54: =J54+1 -> 2022
A55: Distribution System Plan CAPEX
A57: Materiality Threshold | D57: =IF('8. Threshold Test'!$E$72="", 0, '8. Threshold Test'!$E$72) -> 23574062.41 | G57: =IF('8. Threshold Test'!$E$73="", 0, '8. Threshold Test'!$E$73) -> 24025474.6 | J57: =IF('8. Threshold Test'!$E$74="", 0, '8. Threshold Test'!$E$74) -> 24495050.7 | M57: =IF('8. Threshold Test'!$E$75="", 0, '8. Threshold Test'!$E$75) -> 24983521.59
A59: Maximum Eligible Incremental Capital (Forecasted Capex less Threshold) | D59: =IF(D57>D55,0,D55-D57) -> 0 | G59: =IF(G57>G55,0,G55-G57) -> 0 | J59: =IF(J57>J55,0,J55-J57) -> 0 | M59: =IF(M57>M55,0,M55-M57) -> 0
D61: =D53 -> Year 5 | G61: =G53 -> Year 6 | J61: =J53 -> Year 7 | M61: =M53 -> Year 8
D62: =D54 -> 2019 | G62: =G54 -> 2020 | J62: =J54 -> 2021 | M62: =M54 -> 2022
A63: Project Descriptions: | B63: Type | D63: Proposed ACM/ICM | E63: Amortization Expense | F63: CCA | G63: Proposed ACM/ICM | H63: Amortization Expense | I63: CCA | J63: Proposed ACM/ICM | K63: Amortization Expense | L63: CCA | M63: Proposed ACM/ICM | N63: Amortization Expense | O63: CCA
A85: Total Cost of ACM/ICM Projects | D85: =SUM(D64:D83) -> 0 | E85: 0 | F85: 0 | G85: 0 | H85: 0 | I85: 0 | J85: 0 | K85: 0 | L85: 0 | M85: 0 | N85: 0 | O85: 0
A87: Maximum Allowed Incremental Capital | D87: =MIN(D85,D59) -> 0 | G87: =MIN(G85,G59) -> 0 | J87: =MIN(J85,J59) -> 0 | M87: =MIN(M85,M59) -> 0
A89: 1. For the Cost of Service Test Year, CAPEX refers to the CAPEX approved in the DSP. For subsequent Price CAP IR years, the CAPEX to be entered is the actual CAPEX. For the current Price Cap IR year, the CAPEX to be entered is the proposed CAPEX including any ICM/updated ACM project CAPEX for the year. | D89: =D50 -> Price Cap IR (Deferred Rebasing) (if necessary) | G89: =G50 -> Price Cap IR (Deferred Rebasing) (if necessary) | J89: =J50 -> Price Cap IR (Deferred Rebasing) (if necessary) | M89: =M50 -> Price Cap IR (Deferred Rebasing) (if necessary)
D91: Price Cap IR | G91: Price Cap IR | J91: Price Cap IR | M91: Price Cap IR
D92: Year 9 | G92: Year 10 | J92: Year 11 | M92: Year 12
D93: =M54+1 -> 2023 | G93: =D93+1 -> 2024 | J93: =G93+1 -> 2025 | M93: =J93+1 -> 2026
A94: Distribution System Plan CAPEX | M94: =77199088-9700047.44 -> 67499040.56
A96: Materiality Threshold | D96: =IF('8. Threshold Test'!$E$76="", 0, '8. Threshold Test'!$E$76) -> 25491647.54 | G96: =IF('8. Threshold Test'!$E$77="", 0, '8. Threshold Test'!$E$77) -> 26020219.46 | J96: =IF('8. Threshold Test'!$E$78="", 0, '8. Threshold Test'!$E$78) -> 26570060.03 | M96: =IF('8. Threshold Test'!$E$79="", 0, '8. Threshold Test'!$E$79) -> 27142025.06
A98: Maximum Eligible Incremental Capital (Forecasted Capex less Threshold) | D98: =IF(D96>D94,0,D94-D96) -> 0 | G98: =IF(G96>G94,0,G94-G96) -> 0 | J98: =IF(J96>J94,0,J94-J96) -> 0 | M98: =IF(M96>M94,0,M94-M96) -> 40357015.5
D100: =D92 -> Year 9 | G100: =G92 -> Year 10 | J100: =J92 -> Year 11 | M100: =M92 -> Year 12
D101: =D93 -> 2023 | G101: =G93 -> 2024 | J101: =J93 -> 2025 | M101: =M93 -> 2026
A102: Project Descriptions: | B102: Type | D102: Proposed ACM/ICM | E102: Amortization Expense | F102: CCA | G102: Proposed ACM/ICM | H102: Amortization Expense | I102: CCA | J102: Proposed ACM/ICM | K102: Amortization Expense | L102: CCA | M102: Proposed ACM/ICM | N102: Amortization Expense | O102: CCA
A103: Belleville TS DESN 2 | B103: New ICM | M103: 18378106 | N103: =M103/25 -> 735124.24 | O103: =M103*0.05 -> 918905.3
A124: Total Cost of ACM/ICM Projects | D124: =SUM(D103:D122) -> 0 | E124: 0 | F124: 0 | G124: 0 | H124: 0 | I124: 0 | J124: =SUM(J103:J122) -> 0 | K124: 0 | L124: 0 | M124: =SUM(M103:M122) -> 18378106 | N124: =SUM(N103:N122) -> 735124.24 | O124: =SUM(O103:O122) -> 918905.3
A126: Maximum Allowed Incremental Capital | D126: =MIN(D124,D98) -> 0 | G126: =MIN(G124,G98) -> 0 | J126: =MIN(J124,J98) -> 0 | M126: =MIN(M124,M98) -> 18378106
A128: 1. For the Cost of Service Test Year, CAPEX refers to the CAPEX approved in the DSP. For subsequent Price CAP IR years, the CAPEX to be entered is the actual CAPEX. For the current Price Cap IR year, the CAPEX to be entered is the proposed CAPEX including any ICM/updated ACM project CAPEX for the year.

Sheet 10. Incremental Capital Adj.
B12: Incremental Capital Adjustment | C12: Rate Year: | E12: ='1. Information Sheet'!M26 -> 2026
B16: Current Revenue Requirement
B18: Current Revenue Requirement - Total | E18: ='5. Rev_Requ_Check'!E62 -> 49926935.65 | F18: A
B21: Eligible Incremental Capital for ACM/ICM Recovery
C22: Total Claim | E22: Eligible for ACM/ICM
E23: ="("&IF(('1. Information Sheet'!M28-'1. Information Sheet'!M26)=1,"Half Year*","Full Year")&" Prorated Amount)" -> (Full Year Prorated Amount) | F23: =IF(('1. Information Sheet'!M28-'1. Information Sheet'!M26)=1,"*The half year rule is applied as the distributor is scheduled to rebase in the next rate year.","") -> 
C24: (from Sheet 10b)
B25: Amount of Capital Projects Claimed | C25: =INDIRECT("'9b. Proposed ACM ICM Projects'!"&CHAR(68+MOD('1. Information Sheet'!$F$28-1,4)*3)&(39*INT(('1. Information Sheet'!$F$28-1)/4))+46) -> 18378106 | E25: =IF(('1. Information Sheet'!M28-'1. Information Sheet'!M26)=1,INDIRECT("'9b. Proposed ACM ICM Projects'!"&CHAR(68+MOD('1. Information Sheet'!$F$28-1,4)*3)&(39*INT(('1. Information Sheet'!$F$28-1)/4))+48)/2,INDIRECT("'9b. Proposed ACM ICM Projects'!"&CHAR(68+MOD('1. Information Sheet'!$F$28-1,4)*3)&(39*INT(('1. Information Sheet'!$F$28-1)/4))+48)) -> 18378106 | F25: B
B26: Depreciation Expense | C26: =INDIRECT("'9b. Proposed ACM ICM Projects'!"&CHAR(69+MOD('1. Information Sheet'!$F$28-1,4)*3)&(39*INT(('1. Information Sheet'!$F$28-1)/4))+46) -> 735124.24 | E26: =C26*(E25/C25) -> 735124.24 | F26: C
B27: CCA | C27: =INDIRECT("'9b. Proposed ACM ICM Projects'!"&CHAR(70+MOD('1. Information Sheet'!$F$28-1,4)*3)&(39*INT(('1. Information Sheet'!$F$28-1)/4))+46) -> 918905.3 | E27: =C27*(E25/C25) -> 918905.3 | F27: V
B29: ACM/ICM Incremental Revenue Requirement Based on Eligible Amount in Rate Year
B31: Return on Rate Base
B32: Incremental Capital | E32: =E25 -> 18378106 | F32: B
B33: Depreciation Expense (prorated to Eligible Incremental Capital) | E33: =E26 -> 735124.24 | F33: C
B34: Incremental Capital to be included in Rate Base (average NBV in year) | E34: =E32-E33/2 -> 18010543.88 | F34: D = B - C/2
C35: % of capital structure
B36: Deemed Short-Term Debt | C36: ='5. Rev_Requ_Check'!C36 -> 0.04 | D36: E | E36: =E34*C36 -> 720421.7552 | F36: G = D * E
B37: Deemed Long-Term Debt | C37: ='5. Rev_Requ_Check'!C37 -> 0.56 | D37: F | E37: =E34*C37 -> 10085904.57 | F37: H = D * F
C38: Rate (%)
B39: Short-Term Interest | C39: ='5. Rev_Requ_Check'!C40 -> 0.0211 | D39: I | E39: =E36*C39 -> 15200.89903 | F39: K = G * I
B40: Long-Term Interest | C40: ='5. Rev_Requ_Check'!C41 -> 0.0494 | D40: J | E40: =E37*C40 -> 498243.6859 | F40: L = H * J
B42: Return on Rate Base - Interest | E42: =SUM(E39:E40) -> 513444.5849 | F42: M = K + L
C44: =C35 -> % of capital structure
B45: Deemed Equity % | C45: ='5. Rev_Requ_Check'!C38 -> 0.4 | D45: N | E45: =E34*C45 -> 7204217.552 | F45: P = D * N
C46: =C38 -> Rate (%)
B47: Return on Rate Base -Equity | C47: ='5. Rev_Requ_Check'!C42 -> 0.0936 | D47: O | E47: =E45*C47 -> 674314.7629 | F47: Q = P * O
B49: Return on Rate Base - Total | E49: =E42+E47 -> 1187759.348 | F49: R = M + Q
B53: Amortization Expense
B55: Amortization Expense - Incremental | D55: C | E55: =E33 -> 735124.24 | F55: S
B58: Grossed up Taxes/PILs
B60: Regulatory Taxable Income | D60: O | E60: =E47 -> 674314.7629 | F60: T
B62: Add Back Amortization Expense (Prorated to Eligible Incremental Capital) | D62: S | E62: =E55 -> 735124.24 | F62: U
B64: Deduct CCA (Prorated to Eligible Incremental Capital) | E64: =E27 -> 918905.3 | F64: V
B66: Incremental Taxable Income | E66: =E60+E62-E64 -> 490533.7029 | F66: W = T + U - V
B68: Current Tax Rate | C68: 0.265 | D68: X
B70: Taxes/PILs Before Gross Up | E70: =E66*C68 -> 129991.4313 | F70: Y = W * X
B72: Grossed-Up Taxes/PILs | E72: =E70/(1-C68) -> 176859.0901 | F72: Z = Y / ( 1 - X )
B75: Ontario Capital Tax
B76: Incremental Capital CAPEX | F76: AA
B78: Less : Available Capital Exemption (if any) | F78: AB
B80: Incremental Capital CAPEX subject to OCT | F80: AC = AA - AB
B82: Ontario Capital Tax Rate (F1.1 Z-Factor Tax Changes) | D82: AD
B84: Incremental Ontario Capital Tax | F84: AE = AC * AD
B87: Incremental Revenue Requirement
B88: Return on Rate Base - Total | D88: R | E88: =E49 -> 1187759.348 | F88: AA
B89: Amortization Expense - Total | D89: S | E89: =E55 -> 735124.24 | F89: AB
B90: =B72 -> Grossed-Up Taxes/PILs | D90: Z | E90: =E72 -> 176859.0901 | F90: AC
B93: Incremental Revenue Requirement | E93: =SUM(E88:E90) -> 2099742.678 | F93: AD = AA + AB + AC

Sheet 11. Rate Rider Calc
A13: Calculation of incremental rate rider. Choose one of the 3 options: | E13: Fixed and Variable Rate Riders
A15: Rate Class | C15: Service Charge % Revenue | D15: Distribution Volumetric Rate % Revenue kWh | E15: Distribution Volumetric Rate % Revenue kW | F15: Service Charge Revenue | G15: Distribution Volumetric Rate Revenue kWh | H15: Distribution Volumetric Rate Revenue kW | I15: Total Revenue by Rate Class | K15: Billed Customers or Connections | L15: Billed kWh | M15: Billed kW | O15: Service Charge Rate Rider | P15: Distribution Volumetric Rate kWh Rate Rider | Q15: Distribution Volumetric Rate kW Rate Rider
C16: From Sheet 7 | D16: From Sheet 7 | E16: From Sheet 7 | F16: Col C * Col Itotal | G16: Col D* Col Itotal | H16: Col E* Col Itotal | I16: Col Itotal | K16: From Sheet 4 | L16: From Sheet 4 | M16: From Sheet 4 | O16: Col F / Col K / 12 | P16: Col G / Col L | Q16: Col H / Col M
A17: RESIDENTIAL | C17: ='7. Revenue Proportions'!P17 -> 0.6494544139 | D17: ='7. Revenue Proportions'!Q17 -> 0 | E17: ='7. Revenue Proportions'!R17 -> 0 | F17: =ROUND(C17*I27, 2) -> 1363687.15 | G17: =ROUND(D17*I27, 2) -> 0 | H17: =ROUND(E17*I27, 2) -> 0 | I17: =ROUND(F17+G17+H17, 2) -> 1363687.15 | K17: ='3. Growth Factor - NUM_CALC1'!C17 -> 118313 | L17: ='3. Growth Factor - NUM_CALC1'!D17 -> 1031246130 | M17: ='3. Growth Factor - NUM_CALC1'!E17 -> 0 | O17: =IF(ISERROR(ROUND(I17 / K17 / 12, 2)),0,ROUND(I17 / K17 / 12, 2)) -> 0.96 | P17: 0 | Q17: 0 | R17: Note: As per the OEB's letter issued July 16, 2015 (EB-2012-0410), Residential Rates will be applied on a fixed basis only.
A18: SEASONAL RESIDENTIAL | C18: ='7. Revenue Proportions'!P18 -> 0.01564130971 | D18: ='7. Revenue Proportions'!Q18 -> 0 | E18: ='7. Revenue Proportions'!R18 -> 0 | F18: =ROUND(C18*I27, 2) -> 32842.73 | G18: =ROUND(D18*I27, 2) -> 0 | H18: =ROUND(E18*I27, 2) -> 0 | I18: 32842.73 | K18: ='3. Growth Factor - NUM_CALC1'!C18 -> 1560 | L18: ='3. Growth Factor - NUM_CALC1'!D18 -> 12254148 | M18: ='3. Growth Factor - NUM_CALC1'!E18 -> 0 | O18: =IF(ISERROR(ROUND(I18 / K18 / 12, 2)),0,ROUND(I18 / K18 / 12, 2)) -> 1.75 | P18: 0 | Q18: 0 | R18: Note: As per the OEB's letter issued July 16, 2015 (EB-2012-0410), Residential Rates will be applied on a fixed basis only.
A19: GENERAL SERVICE LESS THAN 50 kW | C19: ='7. Revenue Proportions'!P19 -> 0.03383302926 | D19: ='7. Revenue Proportions'!Q19 -> 0.08785324716 | E19: ='7. Revenue Proportions'!R19 -> 0 | F19: =ROUND(C19*I27, 2) -> 71040.66 | G19: =ROUND(D19*I27, 2) -> 184469.21 | H19: =ROUND(E19*I27, 2) -> 0 | I19: 255509.87 | K19: ='3. Growth Factor - NUM_CALC1'!C19 -> 9506 | L19: ='3. Growth Factor - NUM_CALC1'!D19 -> 294204123 | M19: ='3. Growth Factor - NUM_CALC1'!E19 -> 0 | O19: =IF(ISERROR(ROUND(F19 / K19 / 12, 2)),0,ROUND(F19 / K19 / 12, 2)) -> 0.62 | P19: =IF(ISERROR(ROUND(G19 / L19, 4)),0,ROUND(G19 / L19, 4)) -> 0.0006 | Q19: 0
A20: GENERAL SERVICE 50 TO 2,999 KW | C20: ='7. Revenue Proportions'!P20 -> 0.02444694684 | D20: ='7. Revenue Proportions'!Q20 -> 0 | E20: ='7. Revenue Proportions'!R20 -> 0.1284228133 | F20: =ROUND(C20*I27, 2) -> 51332.3 | G20: =ROUND(D20*I27, 2) -> 0 | H20: =ROUND(E20*I27, 2) -> 269654.86 | I20: 320987.16 | K20: ='3. Growth Factor - NUM_CALC1'!C20 -> 1075 | L20: ='3. Growth Factor - NUM_CALC1'!D20 -> 947810445 | M20: ='3. Growth Factor - NUM_CALC1'!E20 -> 2196478 | O20: 3.98 | P20: 0 | Q20: 0.1228
A21: GENERAL SERVICE 3,000 TO 4,999 KW | C21: ='7. Revenue Proportions'!P21 -> 0.005974835523 | D21: ='7. Revenue Proportions'!Q21 -> 0 | E21: ='7. Revenue Proportions'!R21 -> 0.007805017904 | F21: =ROUND(C21*I27, 2) -> 12545.62 | G21: =ROUND(D21*I27, 2) -> 0 | H21: =ROUND(E21*I27, 2) -> 16388.53 | I21: 28934.15 | K21: ='3. Growth Factor - NUM_CALC1'!C21 -> 5 | L21: ='3. Growth Factor - NUM_CALC1'!D21 -> 91496325 | M21: ='3. Growth Factor - NUM_CALC1'!E21 -> 210721 | O21: 209.09 | P21: 0 | Q21: 0.0778
A22: LARGE USE | C22: ='7. Revenue Proportions'!P22 -> 0.008975422561 | D22: ='7. Revenue Proportions'!Q22 -> 0 | E22: ='7. Revenue Proportions'!R22 -> 0.02768121495 | F22: =ROUND(C22*I27, 2) -> 18846.08 | G22: =ROUND(D22*I27, 2) -> 0 | H22: =ROUND(E22*I27, 2) -> 58123.43 | I22: 76969.51 | K22: ='3. Growth Factor - NUM_CALC1'!C22 -> 5 | L22: ='3. Growth Factor - NUM_CALC1'!D22 -> 309975107 | M22: ='3. Growth Factor - NUM_CALC1'!E22 -> 530618 | O22: 314.1 | P22: 0 | Q22: 0.1095
A23: UNMETERED SCATTERED LOAD | C23: ='7. Revenue Proportions'!P23 -> 0.001159003684 | D23: ='7. Revenue Proportions'!Q23 -> 0.001349775616 | E23: ='7. Revenue Proportions'!R23 -> 0 | F23: =ROUND(C23*I27, 2) -> 2433.61 | G23: =ROUND(D23*I27, 2) -> 2834.18 | H23: =ROUND(E23*I27, 2) -> 0 | I23: 5267.79 | K23: ='3. Growth Factor - NUM_CALC1'!C23 -> 798 | L23: ='3. Growth Factor - NUM_CALC1'!D23 -> 4542089 | M23: ='3. Growth Factor - NUM_CALC1'!E23 -> 0 | O23: 0.25 | P23: 0.0006 | Q23: 0
A24: SENTINEL LIGHTING | C24: ='7. Revenue Proportions'!P24 -> 0.0002255127208 | D24: ='7. Revenue Proportions'!Q24 -> 0 | E24: ='7. Revenue Proportions'!R24 -> 0.0001449845192 | F24: =ROUND(C24*I27, 2) -> 473.52 | G24: =ROUND(D24*I27, 2) -> 0 | H24: =ROUND(E24*I27, 2) -> 304.43 | I24: 777.95 | K24: ='3. Growth Factor - NUM_CALC1'!C24 -> 236 | L24: ='3. Growth Factor - NUM_CALC1'!D24 -> 216725 | M24: ='3. Growth Factor - NUM_CALC1'!E24 -> 602 | O24: 0.17 | P24: 0 | Q24: 0.5057
A25: STREET LIGHTING | C25: ='7. Revenue Proportions'!P25 -> 0.004914027991 | D25: ='7. Revenue Proportions'!Q25 -> 0 | E25: ='7. Revenue Proportions'!R25 -> 0.002118444353 | F25: =ROUND(C25*I27, 2) -> 10318.19 | G25: =ROUND(D25*I27, 2) -> 0 | H25: =ROUND(E25*I27, 2) -> 4448.19 | I25: 14766.38 | K25: ='3. Growth Factor - NUM_CALC1'!C25 -> 33008 | L25: ='3. Growth Factor - NUM_CALC1'!D25 -> 11582548 | M25: ='3. Growth Factor - NUM_CALC1'!E25 -> 32169 | O25: 0.03 | P25: 0 | Q25: 0.1383
A26: Total | C26: =SUM(C17:C25) -> 0.7446245022 | D26: 0.08920302277 | E26: 0.166172475 | F26: 1563519.86 | G26: 187303.39 | H26: 348919.44 | I26: 2099742.69 | K26: =SUM(K17:K25) -> 164506 | L26: =SUM(L17:L25) -> 2703327640 | M26: =SUM(M17:M25) -> 2970588
I27: ='10. Incremental Capital Adj.'!E93 -> 2099742.678
I28: From Sheet 11, E93
